Workbook

Sheet MATRIZ DE INDICADORES
D2: MACROPROCESO ESTRATÉGICO | S2: CÓDIGO: ESGr027
D3: PROCESO GESTIÓN SISTEMAS INTEGRADOS - CALIDAD | S3: VERSIÓN: 8
D4: MATRIZ DE MEDICIÓN Y SEGUIMIENTO A LOS PROCESOS DE GESTIÓN | S4: VIGENCIA: 2023-07-28
S5: PÁGINA: 1 de 8
Q7: FECHA DE ACTUALIZACIÓN: | S7: AÑO | T7: MES | U7: DÍA
S8: 2023 | T8: 8 | U8: 11
B10: ALINEACIÓN DE LOS INDICADORES CON LOS DOCUMENTOS ESTRATÉGICOS Y LOS OBJETIVOS DE CALIDAD
B12: PROCESO GESTIÓN | C12: FRENTES DEL PLAN ESTRATÉGICO | D12: LINEAMIENTOS DE LA POLÍTICA DE CALIDAD | E12: OBJETIVOS DE CALIDAD | F12: OBJETIVO GENERAL DEL PROCESO | G12: OBJETIVOS ESPECÍFICOS | H12: NOMBRE INDICADOR | I12: FÓRMULA | J12: TIPO DE INDICADOR | K12: SEGUIMIENTO MEDICIÓN | L12: META | M12: ACTIVIDAD | N12: RESPONSABLE DE LA ACTIVIDAD | O12: ¿QUÉ RECURSOS SE REQUIEREN? | P12: FECHA EJECUCIÓN DE ACTIVIDADES | Q12: EVIDENCIA | R12: ¿CUÁNDO FINALIZARÁ? | S12: RESULTADO | T12: NIVEL OBTENIDO | U12: ACCESO
B13: Bienes y Servicios | C13: Frente Estratégico VI: Organización universitaria inteligente con alma y corazón | D13: Consolidación de una organización universitaria inteligente con alma y corazón | E13: 5. Mejorar continuamente el desempeño de los procesos a través de la implementación de buenas prácticas institucionales y de la aplicación de los mecanismos dispuestos por la Universidad de Cundinamarca, para la constitución de una organización universitaria inteligente con alma y corazón | F13: Gestionar oportunamente la adquisición, ingreso, control, custodia y promoción de los bienes muebles e inmuebles y/o servicios y la administración, mantenimiento de la planta física y parque automotor con el fin de atender los requerimientos de los diferentes procesos enfocados a optimizar el servicio a la comunidad académica. | G13: Realizar la toma física del 98% de los inventarios programados en el Cronograma en las distintas dependencias de la Universidad, en su sede, seccionales y extensiones, durante los 4 trimestres de la actual vigencia. | H13: ABS-1 Toma física de inventarios | I13: Toma física ejecutada*100/Toma física programada | J13: Eficacia | K13: TRIMESTRAL | L13: 0.98 | M13: Proyectar el cronograma de la toma física de inventarios | N13: Jefatura de Almacén | O13: Recurso Humano Office 365 | P13: Ene - Feb del 2024 | Q13: Cronograma proyectado para la vigencia 2023 | R13: 2024 | U13: ABS-1
M14: Solicitar la publicación del cronograma de toma física de inventarios en el Módulo de Contratación, link de inventarios | N14: Jefatura de Almacén Oficina de Comunicaciones | O14: Recurso Humano Office 365 | P14: Ene - Feb del 2024 | Q14: Cronograma para la vigencia del 2023. EPIF001 en la página institucional, módulo de contratación, link de inventarios
M15: Enviar correos electrónicos a los Jefes y Directores de Proceso para notificar la semana en la cual se hará la toma física de inventarios | N15: Jefatura de Almacén | O15: Recurso Humano Office 365 | P15: Vigencia 2024 (de acuerdo al cronograma) | Q15: Correos electrónicos enviados Adjunto el ABSr050 (Toma física de inventarios, registro del ultimo inventario actualizado en el sistema)
M16: Ejecutar la toma física de los inventarios de acuerdo al cronograma o a solicitud | N16: Gestor de Almacén | O16: Recurso Humano Office 365 | P16: Vigencia 2024 (de acuerdo al cronograma) | Q16: Informe Toma Física de Inventarios ABSr139 y/o Acta ABSr036 según aplique.
M17: Actualizar los inventarios de los elementos y equipos en la plataforma | N17: Gestor de Almacén | O17: Recurso Humano Office 365 | P17: Vigencia 2024 (de acuerdo al cronograma) | Q17: Inventario actualizado en la plataforma de Gestasoft
M18: Medir los resultados de la Toma física de inventarios | N18: Jefatura de Almacén | O18: Recurso Humano Office 365 | P18: Mar-24 Jun- 24 Sep-24 Dic-24 | Q18: Medición del indicador
M19: Implementar acciones según los resultados | N19: Jefatura de Almacén | O19: Recurso Humano Office 365 | P19: Según la necesidad | Q19: Ficha técnica de indicador - Acción formulada
G20: Oportunidad en la entrega de la totalidad de los suministros de papelería requeridos por las dependencias de la Universidad, en la sede Fusagasugá, y sus extensiones Soacha, Facatativá, Chía y Zipaquirá en los 4 trimestres del 2024. | H20: ABS-2 Oportunidad en la entrega de suministros de papelería | I20: (# Pedidos entregados ≤ 15 días hábiles (desde el cierre de plataforma SIS) * 100)/ # Total de Pedidos | J20: Eficiencia | K20: TRIMESTRAL | L20: 1 | M20: Realizar la proyección de las necesidades de los insumos de papelería | N20: Jefatura de Almacén | O20: Recurso Humano Office 365 | P20: IIPA 2023 | Q20: Proyección gastos de funcionamiento | U20: ABS-2
M21: Realizar la solicitud de los insumos de papelería | N21: Jefatura de Almacén | O21: Recurso Humano Office 365 Presupuesto asignado | P21: IPA2024 (De acuerdo a la necesidad) | Q21: ABS proyectado
M22: Aperturar la plataforma de Gestasoft - Almacén | N22: Jefatura de Almacén | O22: Recurso Humano Plataforma Gestasoft | P22: Ene-24 Abr-24 Jul-24 Oct-24 | Q22: Correos informando la apertura de la plataforma
M23: Verificar de los pedidos para pre aprobación | N23: Jefatura de Almacén | O23: Recurso Humano Plataforma Gestasoft Office 365 | P23: 15 días hábiles después de cerrada la plataforma | Q23: ABSr014
M24: Entregar los insumos de papelería y toners | N24: Gestor de Almacén | O24: Recurso Humano Plataforma Gestasoft Office 365 | P24: 15 días hábiles después de cerrada la plataforma | Q24: ABSr014 firmado
M25: Medir los resultados de la Oportunidad en la entrega de suministros de papelería | N25: Jefatura de Almacén | O25: Recurso Humano Office 365 | P25: Mar-24 Jun- 24 Sep-24 Dic-24 | Q25: Medición del indicador
M26: Implementar acciones según los resultados | N26: Jefatura de Almacén | O26: Recurso Humano Office 365 | P26: Según la necesidad | Q26: Ficha técnica de indicador - Acción formulada
G27: Lograr que el total de las compras de contratación directa en un 80% sean atendidas en un tiempo menor a 30 días, dividido por trimestres a corte del 2024. | H27: ABS-4 Oportunidad de la compra | I27: (Total compras de contratación directa atendidas en tiempo menor a 30 días) *100/Total de compras de contratación directa | J27: Eficiencia | K27: TRIMESTRAL | L27: 0.8 | M27: Planificar con el grupo de trabajo la asignación del CDP | N27: Jefatura de Compras | O27: Recurso Humano Office 365 | P27: Durante toda la Vigencia | Q27: En el Sistema de Academusoft de la asignación del ABS a cada gestor. Por correo electrónico se le confirma al gestor el CDP. | U27: ABS-4
M28: Realizar seguimiento del proceso de adquisición de Bienes y Servicios | N28: Jefatura de Compras | O28: Recurso Humano Office 365 | P28: Durante toda la Vigencia | Q28: Avances del procedimiento en Integradoc
M29: Ajustar cronograma en caso de presentar demoras en el proceso | N29: Gestores de la Oficina de Compras | O29: Recurso Humano Office 365 | P29: Durante toda la Vigencia | Q29: Cronograma (ABSr143)
M30: Notificar el contrato suscrito y perfeccionado | N30: Gestores de la Oficina de Compras | O30: Recurso Humano Office 365 | P30: Durante toda la Vigencia | Q30: Envío a través de Integradoc y por correo electrónico, del acervo documental del contrato
M31: Medir los resultados de Oportunidad de la compra | N31: Jefatura de Compras | O31: Recurso Humano Office 365 | P31: Mar-24 Jun- 24 Sep-24 Dic-24 | Q31: Medición del indicador
M32: Implementar acciones según los resultados | N32: Jefatura de Compras | O32: Recurso Humano Office 365 | P32: Según la necesidad | Q32: Ficha técnica de indicador - Acción formulada
G33: Verificar que el total de los proveedores evaluados, el 96% estén calificados por encima del 70% en la reevaluación a proveedores que se realiza semestralmente a corte del 2024 | H33: ABS-9 Reevaluación de proveedores Ucundinamarca | I33: Total proveedores calificados mayor a 70 *100 /Total proveedores | J33: Eficacia | K33: SEMESTRAL | L33: 0.96 | M33: Revisar los contratos que se han ejecutado, cuales allegaron la reevaluación | N33: Gestor que estuvo a cargo del proceso de Contratación | O33: Recurso Humano Office 365 | P33: Vigencia 2024 | Q33: Alertas generadas en Integradoc Por correo electrónico avisos en caso de presentar demoras | U33: ABS-9
M34: Verificar si la totalidad de la vigencia anterior (2022) culminados, tengan la reevaluación de los proveedores. | N34: Gestor que estuvo a cargo del proceso de Contratación | O34: Recurso Humano Office 365 | P34: Vigencia 2024 | Q34: Reporte que arroja Integradoc
M35: Validar si quedan pendientes revaluaciones de los contratos ya culminados | N35: Gestor que estuvo a cargo del proceso de Contratación | O35: Recurso Humano Office 365 | P35: Vigencia 2024 | Q35: Reporte que arroja Integradoc
M36: Medir los resultados de la Reevaluación de proveedores Ucundinamarca | N36: Jefatura de Compras | O36: Recurso Humano Office 365 | P36: Jun- 24 Dic-24 | Q36: Medición del indicador
M37: Implementar acciones según los resultados | N37: Jefatura de Compras | O37: Recurso Humano Office 365 | P37: Según la necesidad | Q37: Ficha técnica de indicador - Acción formulada
G38: Verificar del total de los procesos finalizados con o sin éxito, no supere el 35% que se dan por desiertos de acuerdo a la trazabilidad trimestral durante el 2024. | H38: ABS-10 Tasa de procesos desiertos | I38: Número procesos que se dan por desiertos durante el periodo * 100 / Total de procesos finalizados con o sin éxito en el periodo | J38: Eficacia | K38: TRIMESTRAL | L38: 0.35 | M38: Realizar el seguimiento del proceso precontractual generado por el solicitante | N38: Gestores de la Oficina de Compras | O38: Recurso Humano Office 365 | P38: Vigencia 2024 | Q38: Correos electrónicos enviados al área solicitante y/o registros de asistencia que confirmen la socialización de la información | U38: ABS-10
M39: Acompañar de manera técnica y jurídica en cada una de las etapas precontractuales a las diferentes áreas de la Universidad. | N39: Gestores de la Oficina de Compras Gestor Jurídico de la Oficina de Compras | O39: Recurso Humano Office 365 | P39: Vigencia 2024 | Q39: Documentos generados y publicados en la página Web de la Universidad.
M40: Medir los resultados de la tasa de procesos desiertos | N40: Jefatura de Compras | O40: Recurso Humano Office 365 | P40: Mar-24 Jun- 24 Sep-24 Dic-24 | Q40: Medición del indicador
M41: Implementar acciones según los resultados | N41: Jefatura de Compras | O41: Recurso Humano Office 365 | P41: Según la necesidad | Q41: Ficha técnica de indicador - Acción formulada
G42: Verificar la disponibilidad del 100% del parque automotor (buses), en cuanto al cumplimiento de las salidas programadas por la academia de acuerdo al cronograma de prácticas académicas y salidas formativas correspondiente a los dos periodos académicos. | H42: ABS-11 Cumplimiento a la planificación de salidas programadas por la academia | I42: # total de salidas académicas programadas atendidas * 100 / #total de salidas académicas programadas - # salidas académicas canceladas. | J42: Eficacia | K42: SEMESTRAL | L42: 1 | M42: Revisar disponibilidad del parque automotor de acuerdo a los requerimientos realizados por la Academia | N42: Academia Comité de prácticas Jefatura de Recursos Físicos y Servicios Generales | O42: Recurso Humano Office 365 | P42: Según la necesidad | Q42: Ficha Transporte (a partir II semestre 2023) de acuerdo a las actividades que se radican a la oficina de RF y SG | U42: ABS-11
M43: Asignar el vehículo y el conductor para la práctica académica y/o experiencia formativa | N43: Gestor asignado - Oficina de RF y SG | O43: Recurso Humano Office 365 | P43: Según la necesidad | Q43: Envió de correo electrónico
M44: Entregar anticipos (peaje - combustible) y viáticos al conductor | N44: Gestor asignado - Oficina de RF y SG | O44: Recurso Humano Office 365 | P44: Según la necesidad | Q44: Boucher de los peajes. Habilitación del chip para el suministro del combustible.
M45: Medir los resultados del Cumplimiento a la planificación de salidas programadas por la academia | N45: Jefatura de Recursos Físicos y Servicios Generales | O45: Recurso Humano Office 365 | P45: Jun- 24 Dic-24 | Q45: Medición del indicador
M46: Implementar acciones según los resultados | N46: Jefatura de Recursos Físicos y Servicios Generales | O46: Recurso Humano Office 365 | P46: Según la necesidad | Q46: Ficha técnica de indicador - Acción formulada
G47: Verificar la ejecución de los mantenimientos a la infraestructura física en el 90% de las actividades ejecutadas sobre las planificadas de acuerdo al Cronograma de Mantenimiento de Planta Física durante los dos periodos académicos de la presente vigencia. | H47: Mantenimiento a infraestructura física (Plan de acción) | I47: Indicador que se lleva por plan de acción | J47: Indicador que se lleva por plan de acción | K47: TRIMESTRAL | L47: 0.9 | M47: Recopilar las necesidades de los elementos necesarios para el mantenimiento y la Inspección de la planta física | N47: Jefatura de Recursos Físicos y Servicios Generales Gestor asignado de la Oficina de RF y SG | O47: Recurso Humano Office 365 | P47: Inicio de Vigencia | Q47: ABSr082 ABSr080 | S47: Indicador que se lleva por plan de acción
M48: Planificar las actividades del mantenimiento de la Planta física en el Cronograma de Mantenimiento | N48: Jefatura de Recursos Físicos y Servicios Generales Gestor asignado de la Oficina de RF y SG | O48: Recurso Humano Office 365 | P48: Vigencia 2024 | Q48: Cronograma de Mantenimiento Planta Física
M49: Ejecutar las actividades del mantenimiento de planta física | N49: Gestor asignado de la Oficina de RF y SG | O49: Recurso Humano Office 365 | P49: Vigencia 2024 | Q49: Cronograma de Mantenimiento Planta Física (cumplimiento)
M50: Realizar seguimiento a las actividades realizadas de mantenimiento a la planta física | N50: Gestor asignado de la Oficina de RF y SG | O50: Recurso Humano Office 365 | P50: Vigencia 2024 | Q50: ABSr120 ABSr079
M51: Medir los resultados del Mantenimiento a infraestructura física | N51: Jefatura de Recursos Físicos y Servicios Generales | O51: Recurso Humano Office 365 | P51: Mar-24 Jun- 24 Sep-24 Dic-24 | Q51: Medición del indicador
M52: Implementar acciones según los resultados | N52: Jefatura de Recursos Físicos y Servicios Generales | O52: Recurso Humano Office 365 | P52: Según la necesidad | Q52: Ficha técnica de indicador - Acción formulada
B57: Diagonal 18 No. 20-29 Fusagasugá – Cundinamarca Teléfono (601) 8281483 Línea Gratuita 018000180414 www.ucundinamarca.edu.co E-mail: info@ucundinamarca.edu.co NIT: 890.680.062-2
B58: Documento controlado por el Sistema de Gestión de la Calidad Asegúrese que corresponde a la última versión consultando el Portal Institucional
C67: LINEAMIENTOS DE LA POLÍTICA DE CALIDAD | D67: OBJETIVOS DE CALIDAD | E67: ALINEACIÓN DE LOS INDICADORES CON LOS DOCUMENTOS ESTRATÉGICOS Y LOS OBJETIVOS DE CALIDAD
C68: LINEAMIENTOS DE LA POLÍTICA DE SEGURIDAD Y SALUD EN EL TRABAJO | D68: OBJETIVOS DE SEGURIDAD Y SALUD EN EL TRABAJO | E68: ALINEACIÓN DE LOS INDICADORES CON LOS DOCUMENTOS ESTRATÉGICOS Y LOS OBJETIVOS DE SEGURIDAD Y SALUD EN EL TRABAJO
C69: LINEAMIENTOS DE LA POLÍTICA DE AMBIENTAL | D69: OBJETIVOS DE AMBIENTAL | E69: ALINEACIÓN DE LOS INDICADORES CON LOS DOCUMENTOS ESTRATÉGICOS Y LOS OBJETIVOS DE AMBIENTAL
C70: LINEAMIENTOS DE LA POLÍTICA DE SEGURIDAD DE LA INFORMACIÓN | D70: OBJETIVOS DE SEGURIDAD DE LA INFORMACIÓN | E70: ALINEACIÓN DE LOS INDICADORES CON LOS DOCUMENTOS ESTRATÉGICOS Y LOS OBJETIVOS DE SEGURIDAD DE LA INFORMACIÓN
C71: LINEAMIENTOS DE LA POLÍTICA DE SEGURIDAD DE ANTISOBORNO | D71: OBJETIVOS DE SEGURIDAD DE ANTISOBORNO | E71: ALINEACIÓN DE LOS INDICADORES CON LOS DOCUMENTOS ESTRATÉGICOS Y LOS OBJETIVOS DE SEGURIDAD DE ANTISOBORNO
C72: LINEAMIENTOS DE LA POLÍTICA DE LA CONCILIACIÓN DE LA VIDA PERSONAL, FAMILIAR Y LABORAL | D72: OBJETIVOS DE LA CONCILIACIÓN DE LA VIDA PERSONAL, FAMILIAR Y LABORAL | E72: ALINEACIÓN DE LOS INDICADORES CON LOS DOCUMENTOS ESTRATÉGICOS Y LOS OBJETIVOS DE LA CONCILIACIÓN DE LA VIDA PERSONAL, FAMILIAR Y LABORAL

Sheet ABS-1
B2: REGRESAR
E5: MACROPROCESO ESTRATÉGICO | M5: CÓDIGO: ESGr027
E6: PROCESO GESTIÓN SISTEMAS INTEGRADOS | M6: VERSIÓN: 8
E7: MATRIZ DE MEDICIÓN Y SEGUIMIENTO A LOS PROCESOS DE GESTIÓN | M7: VIGENCIA: 2023-07-28
M8: PÁGINA: 2 de 8
C10: FICHA DE INDICADOR
C12: MACROPROCESO | E12: Apoyo | I12: NOMBRE DEL INDICADOR | K12: Toma física de inventarios
C13: PROCESO GESTIÓN | E13: Bienes y Servicios
C14: RESPONSABLE DE MEDICIÓN | E14: Jefe de la Oficina de Almacén
C16: 1. COMPORTAMIENTO DE INDICADOR
C17: CLASIFICACIÓN DE LA MEDICIÓN | E17: 1 | H17: TIPO DE INDICADOR | J17: Eficacia | L17: META | N17: 0.98
C18: FORMULA | E18: NUMERADOR | G18: Toma Física ejecutada *100 | L18: UNIDAD DE MEDIDA | N18: Porcentaje
E19: DENOMINADOR | G19: Toma Física programada
C20: TENDENCIA | E20: Positiva | H20: NIVEL DE SEGREGACIÓN * | J20: No Aplica | L20: ESCALA
L21: Deficiente | M21: Aceptable | N21: Bueno | O21: Excelente
L22: 0% - 69,9% | M22: 70% - 84,9% | N22: 85% - 95% | O22: 95,1% - 100%
C23: ORIGEN DE DATOS NUMERADOR | E23: ABSr139 - Informe toma Física de inventarios | H23: FRECUENCIA DE LA MEDICIÓN | J23: TRIMESTRAL | L23: FRECUENCIA DE RESULTADO | N23: TRIMESTRAL
C24: ORIGEN DE DATOS DENOMINADOR | E24: EPIr001 - Cronograma para tomas físicas
C26: RESULTADOS
J27: ANÁLISIS DE DATOS
J28: I TRIMESTRE: Se realiza de acuerdo al cronograma de toma física de inventarios 2024 un total de 11 verificaciones de inventario durante el primer trimestre así: Laboratorio de Fisiología del esfuerzo, Control Disciplinario Interno, Extension Soacha, Direccion de Sistemas y Tecnologia, Direccion de Investigacion, Laboratorio de Matematicas, Extensión Zipaquirá, Laboratorio de Electronica, Oficina de Educacion Virtual y a Distancia, Laboratorio de Biologia Molecular y Direccion de Autoevaluacion y acreditacion. II TRIMESTRE: Durante el segundo trimestre de 2024 se programaron conforme el cronograma de tomas físicas de inventarios un total de 19 verificaciones, las cuales se cumplieron en un 89,5%, teniendo en curso Recursos Físicos y Servicios Generales y Bienestar Universitario. III TRIMESTRE: Durante el 3 trimestre se realizaron de conformidad 13 verificaciones de inventario físico de la Seccional Girardot, Oficinas de Viceadministrativa, Control Interno, Lab Físiologia Vegetal, Dirección Jurídica, Planeación, Tesorería, Centros de Computo, Facl Ciencias Agropecuarias, Ofici de CFompras y Viceacademica. IV TRIMESTRE: Durante el 4 trimestre se realizó en total de 17 verificaciones de inventario físico de las 18 programadas obteniendo un 94% de cumplimiento.
J34: ACCIÓN FORMULADA
J35: I TRIMESTRE: Cumplir los tiempos de conformidad del procedimiento en referencia subsanación de novedades. II TRIMESTRE: Fortalecer el seguimieneto a las novedades presentadas conforme el procedimiento ABSP23 Control de inventarios, traslados, devoluciones y bajas de bienes. III TRIMESTRE: Apoyo a las oficinas para subsanar las novedades presentadas mediante los cruces de información de los diferentes inventarios. IV TRIMESTRE Apoyo a oficinas con novedades de inventario para su respectiva ubicación y recuperación de los mismos.
J41: RESPONSABLE
J42: =E14 -> Jefe de la Oficina de Almacén
C45: PERIODO DE EVALUACIÓN
C46: MES | D46: =IF(J23="MENSUAL","ENERO",IF(J23="TRIMESTRAL","MARZO",IF(J23="SEMESTRAL","JUNIO",IF(J23="ANUAL",YEAR(TODAY()),"")))) -> MARZO | E46: =IF(J23="MENSUAL","FEBRERO",IF(J23="TRIMESTRAL","JUNIO",IF(J23="SEMESTRAL","DICIEMBRE",""))) -> JUNIO | F46: =IF(J23="MENSUAL","MARZO",IF(J23="TRIMESTRAL","SEPTIEMBRE","")) -> SEPTIEMBRE | G46: =IF(J23="MENSUAL","ABRIL",IF(J23="TRIMESTRAL","DICIEMBRE","")) -> DICIEMBRE | H46: =IF(J23="MENSUAL","MAYO","") ->  | I46: =IF(J23="MENSUAL","JUNIO","") ->  | J46: =IF(J23="MENSUAL","JULIO","") ->  | K46: =IF(J23="MENSUAL","AGOSTO","") ->  | L46: =IF(J23="MENSUAL","SEPTIEMBRE","") ->  | M46: =IF(J23="MENSUAL","OCTUBRE","") ->  | N46: =IF(J23="MENSUAL","NOVIEMBRE","") ->  | O46: =IF(J23="MENSUAL","DICIEMBRE","") -> 
C47: =G18 -> Toma Física ejecutada *100 | D47: 11 | E47: 17 | F47: 13 | G47: 17
C48: =G19 -> Toma Física programada | D48: 11 | E48: 19 | F48: 13 | G48: 18
C49: VALOR | D49: =IFERROR(IF($E$17=1,D47/D48,IF($E$17=2,D47,"")),"") -> 1 | E49: =IFERROR(IF($E$17=1,E47/E48,IF($E$17=2,E47,"")),"") -> 0.8947368421 | F49: =IFERROR(IF($E$17=1,F47/F48,IF($E$17=2,F47,"")),"") -> 1 | G49: 0.9444444444
C50: META PONDERADA | D50: =IF(AND(N23="ANUAL",J23="MENSUAL"),N17/12,IF(AND(N23="ANUAL",J23="TRIMESTRAL"),N17/4,IF(AND(N23="ANUAL",J23="SEMESTRAL"),N17/2,IF(AND(N23="ANUAL",J23="ANUAL"),N17,IF(AND(N23="SEMESTRAL",J23="MENSUAL"),N17/6,IF(AND(N23="SEMESTRAL",J23="TRIMESTRAL"),N17/2,IF(AND(N23="SEMESTRAL",J23="SEMESTRAL"),N17,IF(AND(N23="SEMESTRAL",J23="ANUAL"),"REVISAR FRECUENCIAS",IF(AND(N23="TRIMESTRAL",J23="MENSUAL"),N17/3,IF(AND(N23="TRIMESTRAL",J23="TRIMESTRAL"),N17,IF(AND(N23="TRIMESTRAL",J23="SEMESTRAL"),"REVISAR FRECUENCIAS",IF(AND(N23="TRIMESTRAL",J23="ANUAL"),"REVISAR FRECUENCIAS",IF(AND(N23="MENSUAL",J23="MENSUAL"),N17,IF(AND(N23="MENSUAL",J23="TRIMESTRAL"),"REVISAR FRECUENCIAS",IF(AND(N23="MENSUAL",J23="SEMESTRAL"),"REVISAR FRECUENCIAS",IF(AND(N23="MENSUAL",J23="ANUAL"),"REVISAR FRECUENCIAS","")))))))))))))))) -> 0.98 | E50: =IF(AND(N23="ANUAL",J23="MENSUAL"),N17/12+D50,IF(AND(N23="ANUAL",J23="TRIMESTRAL"),N17/4+D50,IF(AND(N23="ANUAL",J23="SEMESTRAL"),N17/2+D50,IF(AND(N23="SEMESTRAL",J23="MENSUAL"),N17/6+D50,IF(AND(N23="SEMESTRAL",J23="TRIMESTRAL"),N17/2+D50,IF(AND(N23="SEMESTRAL",J23="SEMESTRAL"),N17,IF(AND(N23="TRIMESTRAL",J23="MENSUAL"),N17/3+D50,IF(AND(N23="TRIMESTRAL",J23="TRIMESTRAL"),N17,IF(AND(N23="MENSUAL",J23="MENSUAL"),N17,""))))))))) -> 0.98 | F50: =IF(AND(N23="ANUAL",J23="MENSUAL"),N17/12+E50,IF(AND(N23="ANUAL",J23="TRIMESTRAL"),N17/4+E50,IF(AND(N23="SEMESTRAL",J23="MENSUAL"),N17/6+E50,IF(AND(N23="SEMESTRAL",J23="TRIMESTRAL"),N17/2,IF(AND(N23="TRIMESTRAL",J23="MENSUAL"),N17/3+E50,IF(AND(N23="TRIMESTRAL",J23="TRIMESTRAL"),N17,IF(AND(N23="MENSUAL",J23="MENSUAL"),N17,""))))))) -> 0.98 | G50: =IF(AND(N23="ANUAL",J23="MENSUAL"),N17/12+F50,IF(AND(N23="ANUAL",J23="TRIMESTRAL"),N17/4+F50,IF(AND(N23="SEMESTRAL",J23="MENSUAL"),N17/6+F50,IF(AND(N23="SEMESTRAL",J23="TRIMESTRAL"),N17/2+F50,IF(AND(N23="TRIMESTRAL",J23="MENSUAL"),N17/3,IF(AND(N23="TRIMESTRAL",J23="TRIMESTRAL"),N17,IF(AND(N23="MENSUAL",J23="MENSUAL"),N17,""))))))) -> 0.98 | H50: =IF(AND($N$23="ANUAL",$J$23="MENSUAL"),$N$17/12+G50,IF(AND(N23="SEMESTRAL",J23="MENSUAL"),N17/6+G50,IF(AND(N23="TRIMESTRAL",J23="MENSUAL"),N17/3+G50,IF(AND(N23="MENSUAL",J23="MENSUAL"),N17,"")))) ->  | I50: =IF(AND($N$23="ANUAL",$J$23="MENSUAL"),$N$17/12+H50,IF(AND(N23="SEMESTRAL",J23="MENSUAL"),N17/6+H50,IF(AND(N23="TRIMESTRAL",J23="MENSUAL"),N17/3+H50,IF(AND(N23="MENSUAL",J23="MENSUAL"),N17,"")))) ->  | J50: =IF(AND($N$23="ANUAL",$J$23="MENSUAL"),$N$17/12+I50,IF(AND(N23="SEMESTRAL",J23="MENSUAL"),N17/6,IF(AND(N23="TRIMESTRAL",J23="MENSUAL"),N17/3,IF(AND(N23="MENSUAL",J23="MENSUAL"),N17,"")))) ->  | K50: =IF(AND($N$23="ANUAL",$J$23="MENSUAL"),$N$17/12+J50,IF(AND(N23="SEMESTRAL",J23="MENSUAL"),N17/6+J50,IF(AND(N23="TRIMESTRAL",J23="MENSUAL"),N17/3+J50,IF(AND(N23="MENSUAL",J23="MENSUAL"),N17,"")))) ->  | L50: =IF(AND($N$23="ANUAL",$J$23="MENSUAL"),$N$17/12+K50,IF(AND(N23="SEMESTRAL",J23="MENSUAL"),N17/6+K50,IF(AND(N23="TRIMESTRAL",J23="MENSUAL"),N17/3+K50,IF(AND(N23="MENSUAL",J23="MENSUAL"),N17,"")))) ->  | M50: =IF(AND($N$23="ANUAL",$J$23="MENSUAL"),$N$17/12+L50,IF(AND(N23="SEMESTRAL",J23="MENSUAL"),N17/6+L50,IF(AND(N23="TRIMESTRAL",J23="MENSUAL"),N17/3,IF(AND(N23="MENSUAL",J23="MENSUAL"),N17,"")))) ->  | N50: =IF(AND($N$23="ANUAL",$J$23="MENSUAL"),$N$17/12+M50,IF(AND(N23="SEMESTRAL",J23="MENSUAL"),N17/6+M50,IF(AND(N23="TRIMESTRAL",J23="MENSUAL"),N17/3+M50,IF(AND(N23="MENSUAL",J23="MENSUAL"),N17,"")))) ->  | O50: =IF(AND($N$23="ANUAL",$J$23="MENSUAL"),$N$17/12+N50,IF(AND(N23="SEMESTRAL",J23="MENSUAL"),N17/6+N50,IF(AND(N23="TRIMESTRAL",J23="MENSUAL"),N17/3+N50,IF(AND(N23="MENSUAL",J23="MENSUAL"),N17,"")))) -> 
C52: NIVEL DE SEGREGACIÓN *
C53: UNIDAD SEGREGADA (Ej. Facultad, Programa Académico, Área) | G53: RESULTADO | K53: ANALISIS DE DATOS SEGREGADO
G70: Estratégico | J70: Eficacia
G71: Misional | J71: Eficiencia
G72: Apoyo | J72: Acreditación
G73: Seguimiento, Medición, Análisis y Evaluación | J73: Positiva
G74: Direccionamiento Estratégico | J74: Negativa
G75: Planeación Institucional | J75: Por Unidad Regional
G76: Proyectos Especiales y Relaciones Interinstitucionales | J76: Por Facultad
G77: Sistemas Integrados | J77: Por Programa Académico
G78: Autoevaluación y Acreditación | J78: Por área
G79: Comunicaciones | J79: Por Laboratorio
G80: Formación y Aprendizaje | J80: Otros
G81: Ciencia, Tecnología e Innovación | J81: No Aplica
G82: Interacción Social Universitaria
G83: Bienestar Universitario
G84: Admisiones y Registro
G85: Graduados
G86: Dialogando con el Mundo
G87: Talento Humano
G88: Jurídica
G89: Financiera
G90: Sistemas y Tecnología
G91: Bienes y Servicios
G92: Documental
G93: Apoyo Académico
G94: Control Interno
G95: Control Disciplinario
G96: Servicio de Atención al Ciudadano

Sheet ABS-2
B2: REGRESAR
E5: MACROPROCESO ESTRATÉGICO | M5: CÓDIGO: ESGr027
E6: PROCESO GESTIÓN SISTEMAS INTEGRADOS | M6: VERSIÓN: 8
E7: MATRIZ DE MEDICIÓN Y SEGUIMIENTO A LOS PROCESOS DE GESTIÓN | M7: VIGENCIA: 2023-07-28
M8: PÁGINA: 3 de 8
C10: FICHA DE INDICADOR
C12: MACROPROCESO | E12: Apoyo | I12: NOMBRE DEL INDICADOR | K12: Oportunidad en la entrega de suministros de papelería
C13: PROCESO GESTIÓN | E13: Bienes y Servicios
C14: RESPONSABLE DE MEDICIÓN | E14: Jefe de la Oficina de Almacén
C16: 1. COMPORTAMIENTO DE INDICADOR
C17: CLASIFICACIÓN DE LA MEDICIÓN | E17: 1 | H17: TIPO DE INDICADOR | J17: Eficiencia | L17: META | N17: 1
C18: FORMULA | E18: NUMERADOR | G18: (# Pedidos entregados ≤ 15 días hábiles (desde el cierre de plataforma SIS) * 100) | L18: UNIDAD DE MEDIDA | N18: Porcentaje
E19: DENOMINADOR | G19: # Total de Pedidos
C20: TENDENCIA | E20: Positiva | H20: NIVEL DE SEGREGACIÓN * | J20: Por Unidad Regional | L20: ESCALA
L21: Deficiente | M21: Aceptable | N21: Bueno | O21: Excelente
L22: 0% - 71,9% | M22: 72% - 88,9% | N22: 89% - 100% | O22: >100%
C23: ORIGEN DE DATOS NUMERADOR | E23: Egreso elementos de consumo | H23: FRECUENCIA DE LA MEDICIÓN | J23: TRIMESTRAL | L23: FRECUENCIA DE RESULTADO | N23: TRIMESTRAL
C24: ORIGEN DE DATOS DENOMINADOR | E24: Historial de pedidos Herramienta GESTASOFT
C26: RESULTADOS
J27: ANÁLISIS DE DATOS
J28: I TRIMESTRE: Se realiza habilitación de inventario de consumo de papelería e insumos de oficina para el 1 trimestre 2024, de los cuales se recibieron un total de 11 solicitudes en dónde para la Sede Fusagasuga fueron atendidas 36, Las Seccionales Girardot y Ubate atendieron un total de 5 y 111 respectivamente; las Extensiones, Chía atendio un total de 11 solicudes, Facatativa´un total de 33 y Soacha un total de 15 solicitudes. II TRIMESTRE: Para el segundo trimestre se realizaron un total de 69 solicitudes de insumos de papeleria e insumos de oficina los cuales fueron atendidos en su totalidad, desde la Sede Fusagasugá 32, Extensiones Chía 10, Facatativá 13, Seccionales Ubaté 7 y Girardot 7, con la finalidad de suplir las necesidades para el optimo funcionamiento de cada una de las dependencias de la Universidad de Cundinamarca. III TRIMESTRE: Para el tercer trimestre se realizaron un total de 90 solicitudes de insumos de papeleria e insumos de oficina los cuales fueron atendidos en su totalidad, desde la Sede Fusagasugá 32, Extensiones Chía 11, Chía 11, Soacha 17, Seccionales Ubaté 11 y Girardot 19, con la finalidad de suplir las necesidades para el optimo funcionamiento de cada una de las dependencias de la Universidad de Cundinamarca. IV TRIMESTRE: Para el trimestre se recibieron un total de 39 solicitudes de insumos de papelería y tóner, las cuales fueron atendidas en su totalidad así: Fusagasugá 12, Chía 12, Zipaquirá 1, Secionales Girardot 6 y Ubaté 8 las demas seccionles y extensiones no realizaron entregas para el trimestre en mención
J34: ACCIÓN FORMULADA
J35: I TRIMESTRE: Actualizar la plataforma GESTASOFT para tener el inventario físico acorde al de plataforma y así poder continuar con el uso del módulo. II TRIMESTRE: Presentar depuración y actualización del inventario en plataforma. III TRIMESTRE: Para el 4 trimestre mostrar de los estados financieros el inventario real físico vs plataforma. IV TRIMESTRE: Solicitar la aprobación del manejo del inventario de consumo mediante INTEGRADOC.
J41: RESPONSABLE
J42: =E14 -> Jefe de la Oficina de Almacén
C45: PERIODO DE EVALUACIÓN
C46: MES | D46: =IF(J23="MENSUAL","ENERO",IF(J23="TRIMESTRAL","MARZO",IF(J23="SEMESTRAL","JUNIO",IF(J23="ANUAL",YEAR(TODAY()),"")))) -> MARZO | E46: =IF(J23="MENSUAL","FEBRERO",IF(J23="TRIMESTRAL","JUNIO",IF(J23="SEMESTRAL","DICIEMBRE",""))) -> JUNIO | F46: =IF(J23="MENSUAL","MARZO",IF(J23="TRIMESTRAL","SEPTIEMBRE","")) -> SEPTIEMBRE | G46: =IF(J23="MENSUAL","ABRIL",IF(J23="TRIMESTRAL","DICIEMBRE","")) -> DICIEMBRE | H46: =IF(J23="MENSUAL","MAYO","") ->  | I46: =IF(J23="MENSUAL","JUNIO","") ->  | J46: =IF(J23="MENSUAL","JULIO","") ->  | K46: =IF(J23="MENSUAL","AGOSTO","") ->  | L46: =IF(J23="MENSUAL","SEPTIEMBRE","") ->  | M46: =IF(J23="MENSUAL","OCTUBRE","") ->  | N46: =IF(J23="MENSUAL","NOVIEMBRE","") ->  | O46: =IF(J23="MENSUAL","DICIEMBRE","") -> 
C47: =G18 -> (# Pedidos entregados ≤ 15 días hábiles (desde el cierre de plataforma SIS) * 100) | D47: 111 | E47: 69 | F47: 90 | G47: 39
C48: =G19 -> # Total de Pedidos | D48: 111 | E48: 69 | F48: 90 | G48: 39
C49: VALOR | D49: =IFERROR(IF($E$17=1,D47/D48,IF($E$17=2,D47,"")),"") -> 1 | E49: =IFERROR(IF($E$17=1,E47/E48,IF($E$17=2,E47,"")),"") -> 1 | F49: =IFERROR(IF($E$17=1,F47/F48,IF($E$17=2,F47,"")),"") -> 1 | G49: 1
C50: META PONDERADA | D50: =IF(AND(N23="ANUAL",J23="MENSUAL"),N17/12,IF(AND(N23="ANUAL",J23="TRIMESTRAL"),N17/4,IF(AND(N23="ANUAL",J23="SEMESTRAL"),N17/2,IF(AND(N23="ANUAL",J23="ANUAL"),N17,IF(AND(N23="SEMESTRAL",J23="MENSUAL"),N17/6,IF(AND(N23="SEMESTRAL",J23="TRIMESTRAL"),N17/2,IF(AND(N23="SEMESTRAL",J23="SEMESTRAL"),N17,IF(AND(N23="SEMESTRAL",J23="ANUAL"),"REVISAR FRECUENCIAS",IF(AND(N23="TRIMESTRAL",J23="MENSUAL"),N17/3,IF(AND(N23="TRIMESTRAL",J23="TRIMESTRAL"),N17,IF(AND(N23="TRIMESTRAL",J23="SEMESTRAL"),"REVISAR FRECUENCIAS",IF(AND(N23="TRIMESTRAL",J23="ANUAL"),"REVISAR FRECUENCIAS",IF(AND(N23="MENSUAL",J23="MENSUAL"),N17,IF(AND(N23="MENSUAL",J23="TRIMESTRAL"),"REVISAR FRECUENCIAS",IF(AND(N23="MENSUAL",J23="SEMESTRAL"),"REVISAR FRECUENCIAS",IF(AND(N23="MENSUAL",J23="ANUAL"),"REVISAR FRECUENCIAS","")))))))))))))))) -> 1 | E50: =IF(AND(N23="ANUAL",J23="MENSUAL"),N17/12+D50,IF(AND(N23="ANUAL",J23="TRIMESTRAL"),N17/4+D50,IF(AND(N23="ANUAL",J23="SEMESTRAL"),N17/2+D50,IF(AND(N23="SEMESTRAL",J23="MENSUAL"),N17/6+D50,IF(AND(N23="SEMESTRAL",J23="TRIMESTRAL"),N17/2+D50,IF(AND(N23="SEMESTRAL",J23="SEMESTRAL"),N17,IF(AND(N23="TRIMESTRAL",J23="MENSUAL"),N17/3+D50,IF(AND(N23="TRIMESTRAL",J23="TRIMESTRAL"),N17,IF(AND(N23="MENSUAL",J23="MENSUAL"),N17,""))))))))) -> 1 | F50: =IF(AND(N23="ANUAL",J23="MENSUAL"),N17/12+E50,IF(AND(N23="ANUAL",J23="TRIMESTRAL"),N17/4+E50,IF(AND(N23="SEMESTRAL",J23="MENSUAL"),N17/6+E50,IF(AND(N23="SEMESTRAL",J23="TRIMESTRAL"),N17/2,IF(AND(N23="TRIMESTRAL",J23="MENSUAL"),N17/3+E50,IF(AND(N23="TRIMESTRAL",J23="TRIMESTRAL"),N17,IF(AND(N23="MENSUAL",J23="MENSUAL"),N17,""))))))) -> 1 | G50: =IF(AND(N23="ANUAL",J23="MENSUAL"),N17/12+F50,IF(AND(N23="ANUAL",J23="TRIMESTRAL"),N17/4+F50,IF(AND(N23="SEMESTRAL",J23="MENSUAL"),N17/6+F50,IF(AND(N23="SEMESTRAL",J23="TRIMESTRAL"),N17/2+F50,IF(AND(N23="TRIMESTRAL",J23="MENSUAL"),N17/3,IF(AND(N23="TRIMESTRAL",J23="TRIMESTRAL"),N17,IF(AND(N23="MENSUAL",J23="MENSUAL"),N17,""))))))) -> 1 | H50: =IF(AND($N$23="ANUAL",$J$23="MENSUAL"),$N$17/12+G50,IF(AND(N23="SEMESTRAL",J23="MENSUAL"),N17/6+G50,IF(AND(N23="TRIMESTRAL",J23="MENSUAL"),N17/3+G50,IF(AND(N23="MENSUAL",J23="MENSUAL"),N17,"")))) ->  | I50: =IF(AND($N$23="ANUAL",$J$23="MENSUAL"),$N$17/12+H50,IF(AND(N23="SEMESTRAL",J23="MENSUAL"),N17/6+H50,IF(AND(N23="TRIMESTRAL",J23="MENSUAL"),N17/3+H50,IF(AND(N23="MENSUAL",J23="MENSUAL"),N17,"")))) ->  | J50: =IF(AND($N$23="ANUAL",$J$23="MENSUAL"),$N$17/12+I50,IF(AND(N23="SEMESTRAL",J23="MENSUAL"),N17/6,IF(AND(N23="TRIMESTRAL",J23="MENSUAL"),N17/3,IF(AND(N23="MENSUAL",J23="MENSUAL"),N17,"")))) ->  | K50: =IF(AND($N$23="ANUAL",$J$23="MENSUAL"),$N$17/12+J50,IF(AND(N23="SEMESTRAL",J23="MENSUAL"),N17/6+J50,IF(AND(N23="TRIMESTRAL",J23="MENSUAL"),N17/3+J50,IF(AND(N23="MENSUAL",J23="MENSUAL"),N17,"")))) ->  | L50: =IF(AND($N$23="ANUAL",$J$23="MENSUAL"),$N$17/12+K50,IF(AND(N23="SEMESTRAL",J23="MENSUAL"),N17/6+K50,IF(AND(N23="TRIMESTRAL",J23="MENSUAL"),N17/3+K50,IF(AND(N23="MENSUAL",J23="MENSUAL"),N17,"")))) ->  | M50: =IF(AND($N$23="ANUAL",$J$23="MENSUAL"),$N$17/12+L50,IF(AND(N23="SEMESTRAL",J23="MENSUAL"),N17/6+L50,IF(AND(N23="TRIMESTRAL",J23="MENSUAL"),N17/3,IF(AND(N23="MENSUAL",J23="MENSUAL"),N17,"")))) ->  | N50: =IF(AND($N$23="ANUAL",$J$23="MENSUAL"),$N$17/12+M50,IF(AND(N23="SEMESTRAL",J23="MENSUAL"),N17/6+M50,IF(AND(N23="TRIMESTRAL",J23="MENSUAL"),N17/3+M50,IF(AND(N23="MENSUAL",J23="MENSUAL"),N17,"")))) ->  | O50: =IF(AND($N$23="ANUAL",$J$23="MENSUAL"),$N$17/12+N50,IF(AND(N23="SEMESTRAL",J23="MENSUAL"),N17/6+N50,IF(AND(N23="TRIMESTRAL",J23="MENSUAL"),N17/3+N50,IF(AND(N23="MENSUAL",J23="MENSUAL"),N17,"")))) -> 
C52: NIVEL DE SEGREGACIÓN *
C53: UNIDAD SEGREGADA (Ej. Facultad, Programa Académico, Área) | G53: RESULTADO | K53: ANALISIS DE DATOS SEGREGADO
C54: ZIPAQUIRÁ | G54: 1 | K54: 1 solicitud atendidas en la Extensión Zipaquirá para el cuarto trimestre.
C55: CHÍA | G55: 12 | K55: 12 solicitudes atendidas en la Extensión Chía para el cuarto trimestre.
C56: FUSAGASUGA | G56: 12 | K56: 12 solicitudes atendidas en la Sede Fusagasuga para el cuarto trimestre.
C57: UBATÉ | G57: 8 | K57: 8 solicitudes atendidas en la Seccional Ubaté
C58: GIRARDOT | G58: 6 | K58: 6 Solicitudes atendidas en la Seccional Girardot
G72: Estratégico | J72: Eficacia
G73: Misional | J73: Eficiencia
G74: Apoyo | J74: Acreditación
G75: Seguimiento, Medición, Análisis y Evaluación | J75: Positiva
G76: Direccionamiento Estratégico | J76: Negativa
G77: Planeación Institucional | J77: Por Unidad Regional
G78: Proyectos Especiales y Relaciones Interinstitucionales | J78: Por Facultad
G79: Sistemas Integrados | J79: Por Programa Académico
G80: Autoevaluación y Acreditación | J80: Por área
G81: Comunicaciones | J81: Por Laboratorio
G82: Formación y Aprendizaje | J82: Otros
G83: Ciencia, Tecnología e Innovación | J83: No Aplica
G84: Interacción Social Universitaria
G85: Bienestar Universitario
G86: Admisiones y Registro
G87: Graduados
G88: Dialogando con el Mundo
G89: Talento Humano
G90: Jurídica
G91: Financiera
G92: Sistemas y Tecnología
G93: Bienes y Servicios
G94: Documental
G95: Apoyo Académico
G96: Control Interno
G97: Control Disciplinario
G98: Servicio de Atención al Ciudadano

Sheet Hoja1 (hidden)
B1: FUSA | C1: CHIA | D1: UBATE | E1: SOACHA | F1: GIRARDOT | G1: FACATATIVA
A2: (Total compras de contratación directa atendidas en tiempo menor a 25 días) *100 | B2: 39 | C2: 5 | D2: 13 | E2: 9 | F2: 8 | G2: 6 | H2: =SUM(B2:G2) -> 80
A3: Total de compras de contratación directa | B3: 59 | C3: 6 | D3: 13 | E3: 9 | F3: 9 | G3: 6 | H3: =SUM(B3:G3) -> 102

Sheet Hoja2 (hidden)
B1: FUSA | C1: CHIA | D1: UBATE | E1: SOACHA | F1: GIRARDOT | G1: FACATATIVA
A2: Total proveedores calificados mayor a 70 *100 | B2: 196 | C2: 2 | D2: 18 | E2: 6 | F2: 17 | G2: 9 | H2: =SUM(B2:G2) -> 248
A3: Total proveedores | B3: 204 | C3: 2 | D3: 18 | E3: 6 | F3: 17 | G3: 9 | H3: =SUM(B3:G3) -> 256

Sheet Hoja-4 (hidden)
A1: REFERENCIA | B1: FUSAGASUGA | C1: CHIA-ZIPA | D1: UBATE | E1: SOACHA | F1: GIRARDOT | G1: FACATATIVA
A2: (Total compras de contratación directa atendidas en tiempo menor a 30 días) *100 | B2: 83 | C2: 30 | D2: 20 | E2: 12 | F2: 10 | G2: 3 | H2: =SUM(B2:G2) -> 158
A3: Total de compras de contratación directa | B3: 111 | C3: 35 | D3: 22 | E3: 12 | F3: 17 | G3: 17 | H3: =SUM(B3:G3) -> 214

Sheet ABS-4
B2: REGRESAR
E5: MACROPROCESO ESTRATÉGICO | M5: CÓDIGO: ESGr027
E6: PROCESO GESTIÓN SISTEMAS INTEGRADOS - CALIDAD | M6: VERSIÓN: 8
E7: MATRIZ DE MEDICIÓN Y SEGUIMIENTO A LOS PROCESOS DE GESTIÓN | M7: VIGENCIA: 2023-07-28
M8: PÁGINA: 3 de 4
C10: FICHA DE INDICADOR
C12: MACROPROCESO | E12: Apoyo | I12: NOMBRE DEL INDICADOR | K12: Oportunidad de la compra
C13: PROCESO GESTIÓN | E13: Bienes y Servicios
C14: RESPONSABLE DE MEDICIÓN | E14: Jefe de la Oficina de Compras
C16: 1. COMPORTAMIENTO DE INDICADOR
C17: CLASIFICACIÓN DE LA MEDICIÓN | E17: 1 | H17: TIPO DE INDICADOR | J17: Eficiencia | L17: META | N17: 0.8
C18: FORMULA | E18: NUMERADOR | G18: (Total compras de contratación directa atendidas en tiempo menor a 30 días) *100 | L18: UNIDAD DE MEDIDA | N18: Porcentual
E19: DENOMINADOR | G19: Total de compras de contratación directa
C20: TENDENCIA | E20: Positiva | H20: NIVEL DE SEGREGACIÓN * | J20: No Aplica | L20: ESCALA
L21: Deficiente | M21: Aceptable | N21: Bueno | O21: Excelente
L22: 0%-53% | M22: 60% - 69,9% | N22: 70% - 80% | O22: 80,1% - 100%
C23: ORIGEN DE DATOS NUMERADOR | E23: Herramienta INTEGRADOC | H23: FRECUENCIA DE LA MEDICIÓN | J23: TRIMESTRAL | L23: FRECUENCIA DE RESULTADO | N23: TRIMESTRAL
C24: ORIGEN DE DATOS DENOMINADOR | E24: Procesos contractuales mediante la modalidad de contratación directa
C26: RESULTADOS
J27: ANÁLISIS DE DATOS
J28: I TRIMESTRE: Para el primer trimestre de 2024, se evidencia que en un contexto general en las sedes, seccionales y extensiones, hay un rendimiento evaluado como "EXCELENTE" en nuestra escala interna. Para el caso en la sede principal, se evidencia que los cuatro procesos que se atendieron en un plazo superior a los 30 días, se debió a que a partir del día 29 de Diciembre del 2023 los gestores de la oficina de compras no se encontraban laborando teniendo en cuenta su contrato laboral fue hasta el 28 de Diciembre de 2023, adicional a ello los 4 contratos requerían pólizas por lo que las aseguradores en su mayoría no atendían al público, sin embargo y teniendo en cuenta que la contratación de la universidad Cundinamarca requiere personal, se deja asignado funcionario para atender dichos procesos, de esta manera atender las necesidades de la Universidad de Cundinamarca. II TRIMESTRE: Para el segundo trimestre de 2024, se evidencia que en un contexto general en las sedes, seccionales y extensiones, hay un rendimiento evaluado como "EXCELENTE" en nuestra escala interna. Para el caso en la sede principal, se evidencia que los cuatro procesos que se atendieron en un plazo superior a los 30 días, se debió a que a partir del día 29 de Diciembre del 2023 los gestores de la oficina de compras no se encontraban laborando teniendo en cuenta su contrato laboral fue hasta el 28 de Diciembre de 2023, adicional a ello los 4 contratos requerían pólizas por lo que las aseguradores en su mayoría no atendían al público, sin embargo y teniendo en cuenta que la contratación de la universidad Cundinamarca requiere personal, se deja asignado funcionario para atender dichos procesos, de esta manera atender las necesidades de la Universidad de Cundinamarca. III TRIMESTRE: Considerando el análisis de todos los contratos ejecutados durante el tercer trimestre de 2024, se ha obtenido un resultado del 63% para el conjunto de la sede principal. Este resultado se clasifica como "ACEPTABLE" dentro de nuestra escala y equivale a un total de 76 procesos completados, durante el trimestre, de una muestra de 48 procesos atendidos en un tiempo menor a 30 dias. En relación con los procesos que han sido atendidos en un tiempo mayor a 30, las razones principales son las siguientes: En una revisión de 5 de los 28 procesos que han superado los 30 días de atención, se ha identificado que las observaciones realizadas durante la evaluación técnica han sido una de las principales causas de retraso. Esta situación pone de manifiesto la necesidad urgente de establecer criterios de evaluación claros y adecuados en las áreas solicitantes, con el propósito de asegurar que los plazos se respeten y que las evaluaciones técnicas sean más objetivas y rigurosas. Además, se busca minimizar las devoluciones innecesarias, lo que no solo contribuiría a mejorar los tiempos de respuesta, sino también a optimizar la calidad de los procesos evaluativos. De esta manera, se fomentará una mayor eficiencia y se fortalecerá el compromiso con el cumplimiento de los plazos establecidos. IV TRIMESTRE: En el análisis de los contratos ejecutados durante el cuarto trimestre de 2024 en la sede principal, se ha obtenido un resultado global de 75%, clasificado como "BUENO" dentro de nuestra escala de desempeño. Este porcentaje refleja que 111 procesos fueron completados en un tiempo menor a 30 días, de un total de 83 procesos atendidos en dicho período. Rendimiento dentro del plazo establecido: El 75% de los procesos completados en menos de 30 días es un indicador positivo, que demuestra un cumplimiento notable de los plazos establecidos. Esto es clave para mantener la eficiencia operativa y la satisfacción de las partes involucradas en los contratos. Procesos fuera de los plazos establecidos: Sin embargo, es importante resaltar que un total de 28 procesos superaron el plazo de 30 días. Este resultado indica la existencia de áreas de oportunidad en la gestión de los tiempos de atención. Para estos casos, se realizó una revisión detallada de 5 procesos, en los cuales se identificaron observaciones técnicas como una de las principales causas de los retrasos. Las evaluaciones técnicas, en algunos casos, no han sido lo suficientemente claras ni rigurosas, lo que ha llevado a devoluciones y a la necesidad de realizar ajustes adicionales. Causas identificadas y acciones recomendadas: El análisis de las observaciones técnicas subraya la necesidad urgente de establecer criterios de evaluación más claros y adecuados en las áreas solicitantes. Esto no solo ayudará a cumplir con los plazos establecidos, sino que también contribuirá a una mayor objetividad y rigurosidad en las evaluaciones, lo que a su vez minimizará devoluciones innecesarias.
J34: ACCIÓN FORMULADA
J35: I TRIMESTRE: Seguir trabajando en fortalecer las áreas solicitantes en su ejecución oportuna del presupuesto establecido a fin de prever que en los cierres de las vigencias se presenten casos donde los procesos queden con documentación pendiente. II TRIMESTRE: Seguir trabajando en fortalecer las áreas solicitantes en su ejecución oportuna del presupuesto establecido a fin de prever que en los cierres de las vigencias se presenten casos donde los procesos queden con documentación pendiente. III TRIMESTRE: Es esencial fortalecer la articulación con las áreas solicitantes con el propósito de mitigar los errores que puedan surgir en la evaluación de los proponentes. Esta colaboración busca mejorar la calidad de los procesos y garantizar que los criterios establecidos para la evaluación sean aplicados de manera uniforme. Adicionalmente, se contempla brindar apoyo jurídico continuo por parte de los asesores de compras, quienes estarán disponibles para resolver cualquier duda o inquietud que pueda surgir durante las evaluaciones. Esto permitirá asegurar que las evaluaciones se realicen de manera más precisa y eficiente. Cabe resaltar que, desde la Oficina de Compras, se han implementado criterios con el fin de cumplir estrictamente con lo establecido en la Circular de Tiempos 006 de 2022. Sin embargo, se ha detectado que, durante la revisión de los contratos, existen algunos procesos contemplados en dicha circular para los cuales no se dispone del tiempo necesario, una situación que está fuera del control de la Oficina de Compras. Esta limitación afecta la capacidad de revisión adecuada y oportuna de dichos procesos. En respuesta a esta problemática, desde la Oficina de Compras se ha propuesto la creación de una mesa de trabajo que incluya la revisión y análisis de estos procesos. El objetivo de esta mesa es socializar los desafíos actuales, identificar áreas de mejora y establecer acciones concretas que permitan optimizar los tiempos de revisión. Estas acciones no solo contribuirán al cumplimiento de los plazos establecidos, sino que también mejorarán la coordinación y la eficiencia en la gestión de los contratos. IV TRIMESTRE: Es esencial fortalecer la articulación con las áreas solicitantes con el propósito de mitigar los errores que puedan surgir en la evaluación de los proponentes. Esta colaboración busca mejorar la calidad de los procesos y garantizar que los criterios establecidos para la evaluación sean aplicados de manera uniforme. Adicionalmente, se contempla brindar apoyo jurídico continuo por parte de los asesores de compras, quienes estarán disponibles para resolver cualquier duda o inquietud que pueda surgir durante las evaluaciones. Esto permitirá asegurar que las evaluaciones se realicen de manera más precisa y eficiente. Cabe resaltar que, desde la Oficina de Compras, se han implementado criterios con el fin de cumplir estrictamente con lo establecido en la Circular de Tiempos 006 de 2022. Sin embargo, se ha detectado que, durante la revisión de los contratos, existen algunos procesos contemplados en dicha circular para los cuales no se dispone del tiempo necesario, una situación que está fuera del control de la Oficina de Compras. Esta limitación afecta la capacidad de revisión adecuada y oportuna de dichos procesos. En respuesta a esta problemática, desde la Oficina de Compras se ha propuesto la creación de una mesa de trabajo que incluya la revisión y análisis de estos procesos. El objetivo de esta mesa es socializar los desafíos actuales, identificar áreas de mejora y establecer acciones concretas que permitan optimizar los tiempos de revisión. Estas acciones no solo contribuirán al cumplimiento de los plazos establecidos, sino que también mejorarán la coordinación y la eficiencia en la gestión de los contratos.
J41: RESPONSABLE
J42: =E14 -> Jefe de la Oficina de Compras
C45: PERIODO DE EVALUACIÓN
C46: MES | D46: =IF(J23="MENSUAL","ENERO",IF(J23="TRIMESTRAL","MARZO",IF(J23="SEMESTRAL","JUNIO",IF(J23="ANUAL",YEAR(TODAY()),"")))) -> MARZO | E46: =IF(J23="MENSUAL","FEBRERO",IF(J23="TRIMESTRAL","JUNIO",IF(J23="SEMESTRAL","DICIEMBRE",""))) -> JUNIO | F46: =IF(J23="MENSUAL","MARZO",IF(J23="TRIMESTRAL","SEPTIEMBRE","")) -> SEPTIEMBRE | G46: =IF(J23="MENSUAL","ABRIL",IF(J23="TRIMESTRAL","DICIEMBRE","")) -> DICIEMBRE | H46: =IF(J23="MENSUAL","MAYO","") ->  | I46: =IF(J23="MENSUAL","JUNIO","") ->  | J46: =IF(J23="MENSUAL","JULIO","") ->  | K46: =IF(J23="MENSUAL","AGOSTO","") ->  | L46: =IF(J23="MENSUAL","SEPTIEMBRE","") ->  | M46: =IF(J23="MENSUAL","OCTUBRE","") ->  | N46: =IF(J23="MENSUAL","NOVIEMBRE","") ->  | O46: =IF(J23="MENSUAL","DICIEMBRE","") -> 
C47: =G18 -> (Total compras de contratación directa atendidas en tiempo menor a 30 días) *100 | D47: 16 | E47: 46 | F47: 48 | G47: 83
C48: =G19 -> Total de compras de contratación directa | D48: 20 | E48: 64 | F48: 76 | G48: 111
C49: VALOR | D49: =IFERROR(IF($E$17=1,D47/D48,IF($E$17=2,D47,"")),"") -> 0.8 | E49: =IFERROR(IF($E$17=1,E47/E48,IF($E$17=2,E47,"")),"") -> 0.71875 | F49: 0.6315789474 | G49: 0.7477477477
C50: META PONDERADA | D50: =IF(AND(N23="ANUAL",J23="MENSUAL"),N17/12,IF(AND(N23="ANUAL",J23="TRIMESTRAL"),N17/4,IF(AND(N23="ANUAL",J23="SEMESTRAL"),N17/2,IF(AND(N23="ANUAL",J23="ANUAL"),N17,IF(AND(N23="SEMESTRAL",J23="MENSUAL"),N17/6,IF(AND(N23="SEMESTRAL",J23="TRIMESTRAL"),N17/2,IF(AND(N23="SEMESTRAL",J23="SEMESTRAL"),N17,IF(AND(N23="SEMESTRAL",J23="ANUAL"),"REVISAR FRECUENCIAS",IF(AND(N23="TRIMESTRAL",J23="MENSUAL"),N17/3,IF(AND(N23="TRIMESTRAL",J23="TRIMESTRAL"),N17,IF(AND(N23="TRIMESTRAL",J23="SEMESTRAL"),"REVISAR FRECUENCIAS",IF(AND(N23="TRIMESTRAL",J23="ANUAL"),"REVISAR FRECUENCIAS",IF(AND(N23="MENSUAL",J23="MENSUAL"),N17,IF(AND(N23="MENSUAL",J23="TRIMESTRAL"),"REVISAR FRECUENCIAS",IF(AND(N23="MENSUAL",J23="SEMESTRAL"),"REVISAR FRECUENCIAS",IF(AND(N23="MENSUAL",J23="ANUAL"),"REVISAR FRECUENCIAS","")))))))))))))))) -> 0.8 | E50: =IF(AND(N23="ANUAL",J23="MENSUAL"),N17/12+D50,IF(AND(N23="ANUAL",J23="TRIMESTRAL"),N17/4+D50,IF(AND(N23="ANUAL",J23="SEMESTRAL"),N17/2+D50,IF(AND(N23="SEMESTRAL",J23="MENSUAL"),N17/6+D50,IF(AND(N23="SEMESTRAL",J23="TRIMESTRAL"),N17/2+D50,IF(AND(N23="SEMESTRAL",J23="SEMESTRAL"),N17,IF(AND(N23="TRIMESTRAL",J23="MENSUAL"),N17/3+D50,IF(AND(N23="TRIMESTRAL",J23="TRIMESTRAL"),N17,IF(AND(N23="MENSUAL",J23="MENSUAL"),N17,""))))))))) -> 0.8 | F50: =IF(AND(N23="ANUAL",J23="MENSUAL"),N17/12+E50,IF(AND(N23="ANUAL",J23="TRIMESTRAL"),N17/4+E50,IF(AND(N23="SEMESTRAL",J23="MENSUAL"),N17/6+E50,IF(AND(N23="SEMESTRAL",J23="TRIMESTRAL"),N17/2,IF(AND(N23="TRIMESTRAL",J23="MENSUAL"),N17/3+E50,IF(AND(N23="TRIMESTRAL",J23="TRIMESTRAL"),N17,IF(AND(N23="MENSUAL",J23="MENSUAL"),N17,""))))))) -> 0.8 | G50: =IF(AND(N23="ANUAL",J23="MENSUAL"),N17/12+F50,IF(AND(N23="ANUAL",J23="TRIMESTRAL"),N17/4+F50,IF(AND(N23="SEMESTRAL",J23="MENSUAL"),N17/6+F50,IF(AND(N23="SEMESTRAL",J23="TRIMESTRAL"),N17/2+F50,IF(AND(N23="TRIMESTRAL",J23="MENSUAL"),N17/3,IF(AND(N23="TRIMESTRAL",J23="TRIMESTRAL"),N17,IF(AND(N23="MENSUAL",J23="MENSUAL"),N17,""))))))) -> 0.8 | H50: =IF(AND($N$23="ANUAL",$J$23="MENSUAL"),$N$17/12+G50,IF(AND(N23="SEMESTRAL",J23="MENSUAL"),N17/6+G50,IF(AND(N23="TRIMESTRAL",J23="MENSUAL"),N17/3+G50,IF(AND(N23="MENSUAL",J23="MENSUAL"),N17,"")))) ->  | I50: =IF(AND($N$23="ANUAL",$J$23="MENSUAL"),$N$17/12+H50,IF(AND(N23="SEMESTRAL",J23="MENSUAL"),N17/6+H50,IF(AND(N23="TRIMESTRAL",J23="MENSUAL"),N17/3+H50,IF(AND(N23="MENSUAL",J23="MENSUAL"),N17,"")))) ->  | J50: =IF(AND($N$23="ANUAL",$J$23="MENSUAL"),$N$17/12+I50,IF(AND(N23="SEMESTRAL",J23="MENSUAL"),N17/6,IF(AND(N23="TRIMESTRAL",J23="MENSUAL"),N17/3,IF(AND(N23="MENSUAL",J23="MENSUAL"),N17,"")))) ->  | K50: =IF(AND($N$23="ANUAL",$J$23="MENSUAL"),$N$17/12+J50,IF(AND(N23="SEMESTRAL",J23="MENSUAL"),N17/6+J50,IF(AND(N23="TRIMESTRAL",J23="MENSUAL"),N17/3+J50,IF(AND(N23="MENSUAL",J23="MENSUAL"),N17,"")))) ->  | L50: =IF(AND($N$23="ANUAL",$J$23="MENSUAL"),$N$17/12+K50,IF(AND(N23="SEMESTRAL",J23="MENSUAL"),N17/6+K50,IF(AND(N23="TRIMESTRAL",J23="MENSUAL"),N17/3+K50,IF(AND(N23="MENSUAL",J23="MENSUAL"),N17,"")))) ->  | M50: =IF(AND($N$23="ANUAL",$J$23="MENSUAL"),$N$17/12+L50,IF(AND(N23="SEMESTRAL",J23="MENSUAL"),N17/6+L50,IF(AND(N23="TRIMESTRAL",J23="MENSUAL"),N17/3,IF(AND(N23="MENSUAL",J23="MENSUAL"),N17,"")))) ->  | N50: =IF(AND($N$23="ANUAL",$J$23="MENSUAL"),$N$17/12+M50,IF(AND(N23="SEMESTRAL",J23="MENSUAL"),N17/6+M50,IF(AND(N23="TRIMESTRAL",J23="MENSUAL"),N17/3+M50,IF(AND(N23="MENSUAL",J23="MENSUAL"),N17,"")))) ->  | O50: =IF(AND($N$23="ANUAL",$J$23="MENSUAL"),$N$17/12+N50,IF(AND(N23="SEMESTRAL",J23="MENSUAL"),N17/6+N50,IF(AND(N23="TRIMESTRAL",J23="MENSUAL"),N17/3+N50,IF(AND(N23="MENSUAL",J23="MENSUAL"),N17,"")))) -> 
C52: NIVEL DE SEGREGACIÓN *
C53: UNIDAD SEGREGADA (Ej. Facultad, Programa Académico, Área) | G53: RESULTADO | K53: ANALISIS DE DATOS SEGREGADO
C54: SOACHA | G54: 100 | K54: En la Extensión Soacha se presentaron un total de doce (12) compras por contratación directa en el cuarto trimestre 2024 de las cuales doce (12) fueron atendidas en un tiempo menor a 30 días con un promedio de atención de 19 días, posicionándose en una escala de Excelente (100%)
C55: GIRARDOT | G55: 59 | K55: De los 17 contratos ejecutados en el trimestre, 7 estuvieron en tiempo de realizacion mayor a 30 dias, encontrandose en una escala deficiente, Cabe resaltar que los contratos que se pasan de los 30 dias. Algunas causas de la contratacion atendida mayor a 30 dias son: 1. Se genero retraso en el proceso ya que muchos ABS en la solicitud de cotizacion no tenian incluidas las Garantias; se tenia que enviar al contratista carta de aceptacion y el contratista debia enviar carta de aprobacion en el cumplimiento con las fechas establecidas para el cubrimiento de las Garantias. 2. Uno de los contratos manifesto que no aceptaba las garantias porque al momento publicar el proceso no se establecieron y esto generaba un costo mayor el cual no tenia contemplado el contratista.
C56: FACATATIVA | G56: 79 | K56: En el IV TRIMESTRE del año 2024 se presentaron 3 procesos en tiempo inferior a 30 días debido a lo siguiente: FA-CD-042 - La falta de documentos a tiempo puede indicar problemas de comunicación o falta de organización por parte del oferente. Es importante revisar el historial de cumplimiento de este proveedor para identificar si es un problema recurrente. FA-CD-026 - La observación repetida por parte de un oferente puede sugerir un interés elevado o una posible falta de claridad en los requisitos del proceso. Es crucial analizar si estas observaciones han llevado a mejoras en el proceso o si han causado retrasos. FA-CD-035 - La publicación repetida debido a un bajo presupuesto puede reflejar una falta de atractivo para los oferentes o una subestimación de los costos reales del proyecto. Es importante evaluar si el presupuesto asignado es realista y competitivo.
C57: CHIA - ZIPAQUIRA | G57: 86 | K57: IV TRIMESTRE: Para el cuarto trimestre del 2024 de las extensiones chia y zipaqura, un 86% de los contratos fueron atendidos en menos de 30 días, lo que refleja un proceso de contratación rápido y eficiente. Solo el 14% restante de los contratos tomó más de 30 días, lo que sugiere 5 de estos por razones de revisión documental o la demora por parte de las aseguradoras al momento de emitir pólizas. Este análisis indica que, en general, el proceso de contratación fue bastante eficiente en este período.
C58: UBATE | G58: 91 | K58: De acuerdo al análisis realizado se evidencia un cumplimiento del 91% en la oportunidad de la compra, toda vez que, 20 de los 22 procesos finalizados con selección de proponente en el transcurso del cuarto trimestre se adelantaron en un tiempo menor a 30 días, lo cual, refleja el compromiso por parte de las diferentes áreas que intervienen en el proceso pre contractual y contractual. Dando de esta manera, cumplimiento a la Circular directrices para los procesos y tiempos de contratación emitida por la Vicerrectoría Administrativa y Financiera. No obstante se evidencia demora en dos (2) procesos, devido al retraso en el trámite de pólizas de cumplimiento.
C59: FUSAGASUGA | G59: 75 | K59: En el análisis de los contratos ejecutados durante el cuarto trimestre de 2024 en la sede principal, se ha obtenido un resultado global de 75%, clasificado como "BUENO" dentro de nuestra escala de desempeño. Este porcentaje refleja que 111 procesos fueron completados en un tiempo menor a 30 días, de un total de 83 procesos atendidos en dicho período. Rendimiento dentro del plazo establecido: El 75% de los procesos completados en menos de 30 días es un indicador positivo, que demuestra un cumplimiento notable de los plazos establecidos. Esto es clave para mantener la eficiencia operativa y la satisfacción de las partes involucradas en los contratos. Procesos fuera de los plazos establecidos: Sin embargo, es importante resaltar que un total de 28 procesos superaron el plazo de 30 días. Este resultado indica la existencia de áreas de oportunidad en la gestión de los tiempos de atención. Para estos casos, se realizó una revisión detallada de 5 procesos, en los cuales se identificaron observaciones técnicas como una de las principales causas de los retrasos. Las evaluaciones técnicas, en algunos casos, no han sido lo suficientemente claras ni rigurosas, lo que ha llevado a devoluciones y a la necesidad de realizar ajustes adicionales. Causas identificadas y acciones recomendadas: El análisis de las observaciones técnicas subraya la necesidad urgente de establecer criterios de evaluación más claros y adecuados en las áreas solicitantes. Esto no solo ayudará a cumplir con los plazos establecidos, sino que también contribuirá a una mayor objetividad y rigurosidad en las evaluaciones, lo que a su vez minimizará devoluciones innecesarias.
C62: Diagonal 18 No. 20-29 Fusagasugá – Cundinamarca Teléfono (601) 8281483 Línea Gratuita 018000180414 www.ucundinamarca.edu.co E-mail: info@ucundinamarca.edu.co NIT: 890.680.062-2
C63: Documento controlado por el Sistema de Gestión de la Calidad Asegúrese que corresponde a la última versión consultando el Portal Institucional
G72: Estratégico | J72: Eficacia
G73: Misional | J73: Eficiencia
G74: Apoyo | J74: Acreditación
G75: Seguimiento, Medición, Análisis y Evaluación | J75: Positiva
G76: Direccionamiento Estratégico | J76: Negativa
G77: Planeación Institucional | J77: Por Unidad Regional
G78: Proyectos Especiales y Relaciones Interinstitucionales | J78: Por Facultad
G79: Sistemas Integrados | J79: Por Programa Académico
G80: Autoevaluación y Acreditación | J80: Por área
G81: Comunicaciones | J81: Por Laboratorio
G82: Formación y Aprendizaje | J82: Otros
G83: Ciencia, Tecnología e Innovación | J83: No Aplica
G84: Interacción Social Universitaria
G85: Bienestar Universitario
G86: Admisiones y Registro
G87: Graduados
G88: Dialogando con el Mundo
G89: Talento Humano
G90: Jurídica
G91: Financiera
G92: Sistemas y Tecnología
G93: Bienes y Servicios
G94: Documental
G95: Apoyo Académico
G96: Control Interno
G97: Control Disciplinario
G98: Servicio de Atención al Ciudadano

Sheet Hoja4 (hidden)

Sheet Hoja3 (hidden)
A1: MES | B1: =IF(#REF!="MENSUAL","ENERO",IF(#REF!="TRIMESTRAL","MARZO",IF(#REF!="SEMESTRAL","JUNIO",IF(#REF!="ANUAL",YEAR(TODAY()),"")))) ->  | C1: =IF(#REF!="MENSUAL","FEBRERO",IF(#REF!="TRIMESTRAL","JUNIO",IF(#REF!="SEMESTRAL","DICIEMBRE",""))) ->  | D1: =IF(#REF!="MENSUAL","MARZO",IF(#REF!="TRIMESTRAL","SEPTIEMBRE","")) -> 
A2: =#REF! ->  | B2: 16 | C2: 46 | D2: 48
A3: =#REF! ->  | B3: 20 | C3: 64 | D3: 76
A4: VALOR | B4: =IFERROR(IF($E$17=1,B2/B3,IF($E$17=2,B2,"")),"") ->  | C4: =IFERROR(IF($E$17=1,C2/C3,IF($E$17=2,C2,"")),"") ->  | D4: =IFERROR(IF($E$17=1,D2/D3,IF($E$17=2,D2,"")),"") -> 

Sheet Hoja-10 (hidden)
A1: REFERENCIA | B1: FUSAGASUGA | C1: CHIA-ZIPA | D1: UBATE | E1: SOACHA | F1: GIRARDOT | G1: FACATATIVA
A2: Número procesos que se dan por desiertos durante el periodo * 100 | B2: 59 | C2: 3 | D2: 9 | E2: 2 | F2: 17 | G2: 3 | H2: =SUM(B2:G2) -> 93
A3: Total de procesos finalizados con o sin exito en el periodo | B3: 170 | C3: 38 | D3: 31 | E3: 14 | F3: 34 | G3: 17 | H3: =SUM(B3:G3) -> 304

Sheet ABS-9
B2: REGRESAR
E5: MACROPROCESO ESTRATÉGICO | M5: CÓDIGO: ESGr027
E6: PROCESO GESTIÓN SISTEMAS INTEGRADOS - CALIDAD | M6: VERSIÓN: 8
E7: MATRIZ DE MEDICIÓN Y SEGUIMIENTO A LOS PROCESOS DE GESTIÓN | M7: VIGENCIA: 2023-07-28
M8: PÁGINA: 3 de 4
C10: FICHA DE INDICADOR
C12: MACROPROCESO | E12: Apoyo | I12: NOMBRE DEL INDICADOR | K12: Reevaluación de proveedores Ucundinamarca
C13: PROCESO GESTIÓN | E13: Bienes y Servicios
C14: RESPONSABLE DE MEDICIÓN | E14: Jefe Oficina de Compras
C16: 1. COMPORTAMIENTO DE INDICADOR
C17: CLASIFICACIÓN DE LA MEDICIÓN | E17: 1 | H17: TIPO DE INDICADOR | J17: Eficacia | L17: META | N17: 0.96
C18: FORMULA | E18: NUMERADOR | G18: Total proveedores calificados mayor a 70 *100 | L18: UNIDAD DE MEDIDA | N18: Porcentual
E19: DENOMINADOR | G19: Total proveedores
C20: TENDENCIA | E20: Positiva | H20: NIVEL DE SEGREGACIÓN * | J20: Por Unidad Regional | L20: ESCALA
L21: Deficiente | M21: Aceptable | N21: Bueno | O21: Excelente
L22: 0% - 70% | M22: 70,1% - 80% | N22: 80,1% - 90% | O22: > 95%
C23: ORIGEN DE DATOS NUMERADOR | E23: Formatos de reevaluación | H23: FRECUENCIA DE LA MEDICIÓN | J23: SEMESTRAL | L23: FRECUENCIA DE RESULTADO | N23: SEMESTRAL
C24: ORIGEN DE DATOS DENOMINADOR | E24: Formatos de reevaluación
C26: RESULTADOS
J27: ANÁLISIS DE DATOS
J28: I SEMESTRE: Tras llevar a cabo la medición del indicador de Reevaluación de Proveedores para el I semestre de 2024 en la sede de Fusagasugá, se logró un destacado resultado del 99%. Este porcentaje se traduce en 180 182 reevaluaciones recibidas durante el presente semestre. Las calificaciones obtenidas están respaldadas por el cumplimiento tanto de los plazos precontractuales como postcontractuales, la disponibilidad del servicio y el acatamiento de las especificaciones técnicas establecidas. Este resultado refleja el compromiso y la eficacia de nuestros proveedores en diversos aspectos cruciales para el Instituto en este periodo. II SEMESTRE: Tras llevar a cabo la medición del indicador de Reevaluación de Proveedores para el I semestre de 2024 en la sede de Fusagasugá, se logró un destacado resultado del 96%. Este porcentaje se traduce en 83 reevaluaciones recibidas durante el presente semestre. Las calificaciones obtenidas están respaldadas por el cumplimiento tanto de los plazos precontractuales como postcontractuales, la disponibilidad del servicio y el acatamiento de las especificaciones técnicas establecidas. Este resultado refleja el compromiso y la eficacia de nuestros proveedores en diversos aspectos cruciales para el Instituto en este periodo.
J34: ACCIÓN FORMULADA
J35: I SEMESTRE: A través de este indicador, podemos apreciar la eficaz contribución de la supervisión. Sin embargo, con el objetivo de alcanzar un índice del 100%, se propone una estrategia consistente en la organización de mesas de trabajo con la participación activa de los supervisores. El propósito de estas sesiones es diseñar estrategias desde la etapa de selección que faciliten la adecuada ejecución de los contratos, incorporando un componente jurídico que respalde estas iniciativas. Además, se contempla el uso de la plataforma Integradoc para mantener a los supervisores al tanto de sus responsabilidades, lo que garantiza que estén al día con las actividades relacionadas con la supervisión. Este enfoque integral busca optimizar la gestión de los contratos y asegurar que se cumplan de manera efectiva y eficiente, buscando siempre la excelencia en todas las etapas del proceso. II SEMESTRE: A través de este indicador, podemos apreciar la eficaz contribución de la supervisión. Sin embargo, con el objetivo de alcanzar un índice del 100%, se propone una estrategia consistente en la organización de mesas de trabajo con la participación activa de los supervisores. El propósito de estas sesiones es diseñar estrategias desde la etapa de selección que faciliten la adecuada ejecución de los contratos, incorporando un componente jurídico que respalde estas iniciativas. Además, se contempla el uso de la plataforma Integradoc para mantener a los supervisores al tanto de sus responsabilidades, lo que garantiza que estén al día con las actividades relacionadas con la supervisión. Este enfoque integral busca optimizar la gestión de los contratos y asegurar que se cumplan de manera efectiva y eficiente, buscando siempre la excelencia en todas las etapas del proceso.
J41: RESPONSABLE
J42: =E14 -> Jefe Oficina de Compras
C45: PERIODO DE EVALUACIÓN
C46: MES | D46: =IF(J23="MENSUAL","ENERO",IF(J23="TRIMESTRAL","MARZO",IF(J23="SEMESTRAL","JUNIO",IF(J23="ANUAL",YEAR(TODAY()),"")))) -> JUNIO | E46: =IF(J23="MENSUAL","FEBRERO",IF(J23="TRIMESTRAL","JUNIO",IF(J23="SEMESTRAL","DICIEMBRE",""))) -> DICIEMBRE | F46: =IF(J23="MENSUAL","MARZO",IF(J23="TRIMESTRAL","SEPTIEMBRE","")) ->  | G46: =IF(J23="MENSUAL","ABRIL",IF(J23="TRIMESTRAL","DICIEMBRE","")) ->  | H46: =IF(J23="MENSUAL","MAYO","") ->  | I46: =IF(J23="MENSUAL","JUNIO","") ->  | J46: =IF(J23="MENSUAL","JULIO","") ->  | K46: =IF(J23="MENSUAL","AGOSTO","") ->  | L46: =IF(J23="MENSUAL","SEPTIEMBRE","") ->  | M46: =IF(J23="MENSUAL","OCTUBRE","") ->  | N46: =IF(J23="MENSUAL","NOVIEMBRE","") ->  | O46: =IF(J23="MENSUAL","DICIEMBRE","") -> 
C47: =G18 -> Total proveedores calificados mayor a 70 *100 | D47: 180 | E47: 80
C48: =G19 -> Total proveedores | D48: 182 | E48: 83
C49: VALOR | D49: =IFERROR(IF($E$17=1,D47/D48,IF($E$17=2,D47,"")),"") -> 0.989010989 | E49: =IFERROR(IF($E$17=1,E47/E48,IF($E$17=2,E47,"")),"") -> 0.9638554217
C50: META PONDERADA | D50: =IF(AND(N23="ANUAL",J23="MENSUAL"),N17/12,IF(AND(N23="ANUAL",J23="TRIMESTRAL"),N17/4,IF(AND(N23="ANUAL",J23="SEMESTRAL"),N17/2,IF(AND(N23="ANUAL",J23="ANUAL"),N17,IF(AND(N23="SEMESTRAL",J23="MENSUAL"),N17/6,IF(AND(N23="SEMESTRAL",J23="TRIMESTRAL"),N17/2,IF(AND(N23="SEMESTRAL",J23="SEMESTRAL"),N17,IF(AND(N23="SEMESTRAL",J23="ANUAL"),"REVISAR FRECUENCIAS",IF(AND(N23="TRIMESTRAL",J23="MENSUAL"),N17/3,IF(AND(N23="TRIMESTRAL",J23="TRIMESTRAL"),N17,IF(AND(N23="TRIMESTRAL",J23="SEMESTRAL"),"REVISAR FRECUENCIAS",IF(AND(N23="TRIMESTRAL",J23="ANUAL"),"REVISAR FRECUENCIAS",IF(AND(N23="MENSUAL",J23="MENSUAL"),N17,IF(AND(N23="MENSUAL",J23="TRIMESTRAL"),"REVISAR FRECUENCIAS",IF(AND(N23="MENSUAL",J23="SEMESTRAL"),"REVISAR FRECUENCIAS",IF(AND(N23="MENSUAL",J23="ANUAL"),"REVISAR FRECUENCIAS","")))))))))))))))) -> 0.96 | E50: =IF(AND(N23="ANUAL",J23="MENSUAL"),N17/12+D50,IF(AND(N23="ANUAL",J23="TRIMESTRAL"),N17/4+D50,IF(AND(N23="ANUAL",J23="SEMESTRAL"),N17/2+D50,IF(AND(N23="SEMESTRAL",J23="MENSUAL"),N17/6+D50,IF(AND(N23="SEMESTRAL",J23="TRIMESTRAL"),N17/2+D50,IF(AND(N23="SEMESTRAL",J23="SEMESTRAL"),N17,IF(AND(N23="TRIMESTRAL",J23="MENSUAL"),N17/3+D50,IF(AND(N23="TRIMESTRAL",J23="TRIMESTRAL"),N17,IF(AND(N23="MENSUAL",J23="MENSUAL"),N17,""))))))))) -> 0.96 | F50: =IF(AND(N23="ANUAL",J23="MENSUAL"),N17/12+E50,IF(AND(N23="ANUAL",J23="TRIMESTRAL"),N17/4+E50,IF(AND(N23="SEMESTRAL",J23="MENSUAL"),N17/6+E50,IF(AND(N23="SEMESTRAL",J23="TRIMESTRAL"),N17/2,IF(AND(N23="TRIMESTRAL",J23="MENSUAL"),N17/3+E50,IF(AND(N23="TRIMESTRAL",J23="TRIMESTRAL"),N17,IF(AND(N23="MENSUAL",J23="MENSUAL"),N17,""))))))) ->  | G50: =IF(AND(N23="ANUAL",J23="MENSUAL"),N17/12+F50,IF(AND(N23="ANUAL",J23="TRIMESTRAL"),N17/4+F50,IF(AND(N23="SEMESTRAL",J23="MENSUAL"),N17/6+F50,IF(AND(N23="SEMESTRAL",J23="TRIMESTRAL"),N17/2+F50,IF(AND(N23="TRIMESTRAL",J23="MENSUAL"),N17/3,IF(AND(N23="TRIMESTRAL",J23="TRIMESTRAL"),N17,IF(AND(N23="MENSUAL",J23="MENSUAL"),N17,""))))))) ->  | H50: =IF(AND($N$23="ANUAL",$J$23="MENSUAL"),$N$17/12+G50,IF(AND(N23="SEMESTRAL",J23="MENSUAL"),N17/6+G50,IF(AND(N23="TRIMESTRAL",J23="MENSUAL"),N17/3+G50,IF(AND(N23="MENSUAL",J23="MENSUAL"),N17,"")))) ->  | I50: =IF(AND($N$23="ANUAL",$J$23="MENSUAL"),$N$17/12+H50,IF(AND(N23="SEMESTRAL",J23="MENSUAL"),N17/6+H50,IF(AND(N23="TRIMESTRAL",J23="MENSUAL"),N17/3+H50,IF(AND(N23="MENSUAL",J23="MENSUAL"),N17,"")))) ->  | J50: =IF(AND($N$23="ANUAL",$J$23="MENSUAL"),$N$17/12+I50,IF(AND(N23="SEMESTRAL",J23="MENSUAL"),N17/6,IF(AND(N23="TRIMESTRAL",J23="MENSUAL"),N17/3,IF(AND(N23="MENSUAL",J23="MENSUAL"),N17,"")))) ->  | K50: =IF(AND($N$23="ANUAL",$J$23="MENSUAL"),$N$17/12+J50,IF(AND(N23="SEMESTRAL",J23="MENSUAL"),N17/6+J50,IF(AND(N23="TRIMESTRAL",J23="MENSUAL"),N17/3+J50,IF(AND(N23="MENSUAL",J23="MENSUAL"),N17,"")))) ->  | L50: =IF(AND($N$23="ANUAL",$J$23="MENSUAL"),$N$17/12+K50,IF(AND(N23="SEMESTRAL",J23="MENSUAL"),N17/6+K50,IF(AND(N23="TRIMESTRAL",J23="MENSUAL"),N17/3+K50,IF(AND(N23="MENSUAL",J23="MENSUAL"),N17,"")))) ->  | M50: =IF(AND($N$23="ANUAL",$J$23="MENSUAL"),$N$17/12+L50,IF(AND(N23="SEMESTRAL",J23="MENSUAL"),N17/6+L50,IF(AND(N23="TRIMESTRAL",J23="MENSUAL"),N17/3,IF(AND(N23="MENSUAL",J23="MENSUAL"),N17,"")))) ->  | N50: =IF(AND($N$23="ANUAL",$J$23="MENSUAL"),$N$17/12+M50,IF(AND(N23="SEMESTRAL",J23="MENSUAL"),N17/6+M50,IF(AND(N23="TRIMESTRAL",J23="MENSUAL"),N17/3+M50,IF(AND(N23="MENSUAL",J23="MENSUAL"),N17,"")))) ->  | O50: =IF(AND($N$23="ANUAL",$J$23="MENSUAL"),$N$17/12+N50,IF(AND(N23="SEMESTRAL",J23="MENSUAL"),N17/6+N50,IF(AND(N23="TRIMESTRAL",J23="MENSUAL"),N17/3+N50,IF(AND(N23="MENSUAL",J23="MENSUAL"),N17,"")))) -> 
C52: NIVEL DE SEGREGACIÓN *
C53: UNIDAD SEGREGADA (Ej. Facultad, Programa Académico, Área) | G53: RESULTADO | K53: ANALISIS DE DATOS SEGREGADO
C54: SOACHA | G54: 100 | K54: Una vez se realiza la Reevaluación de proveedores para el segundo semestre del año 2024, se tiene como resultado el 100 %, que corresponde a ocho (08) Reevaluaciones con calificaciones mayor a 70, donde es posible evidenciar que la selección de proveedores en la Extensión Soacha es muy confiable
C55: GIRARDOT | G55: 100 | K55: Del total de proovedores que ha tenido la seccional Girardot, solo se evidencia la calificacion a 6 proovedores durante el segundo semestre del año 2024 donde se ha obtenido una calificacion 100% encontrandonos en un rango de excelente.
C56: FACATATIVA | G56: 100 | K56: Se tomaron 8 Reevaluaciones de proveedores, que se habían realizado dentro del periodo entre julio y diciembre del 2024, las cuales en su calificación se encuentran en un rango de cumplimiento del 100%
C57: CHIA-ZIPA | G57: NO PRESENTAN REEVALUACIONES A CALIFICAR | K57: Para el 2 trimestre de 2024 aun no se han realizado reevaluaciones ya que los contratos aun estan en ejecucion
C58: UBATE | G58: 100 | K58: De acuerdo al análisis realizado se evidencia un cumplimiento del 91% en la oportunidad de la compra, toda vez que, 20 de los 22 procesos finalizados con selección de proponente en el transcurso del cuarto trimestre se adelantaron en un tiempo menor a 30 días, lo cual, refleja el compromiso por parte de las diferentes áreas que intervienen en el proceso pre contractual y contractual. Dando de esta manera, cumplimiento a la Circular directrices para los procesos y tiempos de contratación emitida por la Vicerrectoría Administrativa y Financiera. No obstante se evidencia demora en dos (2) procesos, devido al retraso en el trámite de pólizas de cumplimiento.
C59: FUSAGASUGA | G59: 96 | K59: Tras llevar a cabo la medición del indicador de Reevaluación de Proveedores para el I semestre de 2024 en la sede de Fusagasugá, se logró un destacado resultado del 96%. Este porcentaje se traduce en 83 reevaluaciones recibidas durante el presente semestre. Las calificaciones obtenidas están respaldadas por el cumplimiento tanto de los plazos precontractuales como postcontractuales, la disponibilidad del servicio y el acatamiento de las especificaciones técnicas establecidas. Este resultado refleja el compromiso y la eficacia de nuestros proveedores en diversos aspectos cruciales para el Instituto en este periodo.
C62: Diagonal 18 No. 20-29 Fusagasugá – Cundinamarca Teléfono (601) 8281483 Línea Gratuita 018000180414 www.ucundinamarca.edu.co E-mail: info@ucundinamarca.edu.co NIT: 890.680.062-2
C63: Documento controlado por el Sistema de Gestión de la Calidad Asegúrese que corresponde a la última versión consultando el Portal Institucional
G72: Estratégico | J72: Eficacia
G73: Misional | J73: Eficiencia
G74: Apoyo | J74: Acreditación
G75: Seguimiento, Medición, Análisis y Evaluación | J75: Positiva
G76: Direccionamiento Estratégico | J76: Negativa
G77: Planeación Institucional | J77: Por Unidad Regional
G78: Proyectos Especiales y Relaciones Interinstitucionales | J78: Por Facultad
G79: Sistemas Integrados | J79: Por Programa Académico
G80: Autoevaluación y Acreditación | J80: Por área
G81: Comunicaciones | J81: Por Laboratorio
G82: Formación y Aprendizaje | J82: Otros
G83: Ciencia, Tecnología e Innovación | J83: No Aplica
G84: Interacción Social Universitaria
G85: Bienestar Universitario
G86: Admisiones y Registro
G87: Graduados
G88: Dialogando con el Mundo
G89: Talento Humano
G90: Jurídica
G91: Financiera
G92: Sistemas y Tecnología
G93: Bienes y Servicios
G94: Documental
G95: Apoyo Académico
G96: Control Interno
G97: Control Disciplinario
G98: Servicio de Atención al Ciudadano

Sheet ABS-10
B2: REGRESAR
E5: MACROPROCESO ESTRATÉGICO | M5: CÓDIGO: ESGr027
E6: PROCESO GESTIÓN SISTEMAS INTEGRADOS | M6: VERSIÓN: 8
E7: MATRIZ DE MEDICIÓN Y SEGUIMIENTO A LOS PROCESOS DE GESTIÓN | M7: VIGENCIA: 2023-07-28
M8: PÁGINA: 6 de 8
C10: FICHA DE INDICADOR
C12: MACROPROCESO | E12: Apoyo | I12: NOMBRE DEL INDICADOR | K12: Tasa de procesos desiertos
C13: PROCESO GESTIÓN | E13: Bienes y Servicios
C14: RESPONSABLE DE MEDICIÓN | E14: Jefe de la Oficina de Compras
C16: 1. COMPORTAMIENTO DE INDICADOR
C17: CLASIFICACIÓN DE LA MEDICIÓN | E17: 1 | H17: TIPO DE INDICADOR | J17: Eficacia | L17: META | N17: 0.35
C18: FORMULA | E18: NUMERADOR | G18: Número procesos que se dan por desiertos durante el periodo * 100 | L18: UNIDAD DE MEDIDA | N18: Porcentual
E19: DENOMINADOR | G19: Total de procesos finalizados con o sin éxito en el periodo
C20: TENDENCIA | E20: Negativa | H20: NIVEL DE SEGREGACIÓN * | J20: Por Unidad Regional | L20: ESCALA
L21: Deficiente | M21: Aceptable | N21: Bueno | O21: Excelente
L22: 100% - 42,1% | M22: 42% - 35,1% | N22: 35% - 20,1% | O22: 20% - 0%
C23: ORIGEN DE DATOS NUMERADOR | E23: Data Integradoc | H23: FRECUENCIA DE LA MEDICIÓN | J23: TRIMESTRAL | L23: FRECUENCIA DE RESULTADO | N23: TRIMESTRAL
C24: ORIGEN DE DATOS DENOMINADOR | E24: Data Integradoc
C26: RESULTADOS
J27: ANÁLISIS DE DATOS
J28: TRIMESTRE I - II: Considerando el análisis de todos los contratos ejecutados durante el primer trimestre de 2024, se evidencia un comportamiento positivo en el presente inidicador, sin embargo cabe destacar que aun siguen predominando las siguientes causales de rechazo: Exceder el presupuesto oficial o los precios de referencia, de ser aplicable. Por falta de presentación de cotizaciones por parte de los proveedores. Subsanabilidad incompleta o falta de subsanación por parte de los oferentes. Estos motivos constituyen las principales causas detrás de la declaración de desiertos en los procesos de contratación durante el trimestre mencionado. Es importante tener en cuenta estas consideraciones al analizar el desempeño y mejorar los resultados en futuros procesos de contratación. TRIMESTRE III: En el presente indicador se puede evidenciar que de un total de 128 procesos de Cotratacion Directa, 52 procesos fueron declarados como desiertos y las causales principales son las siguientes: El presente indicador muestra que, de un total de 128 procesos de Contratación Directa, 52 fueron declarados desiertos. Las principales causales que llevaron a esta situación son las siguientes: No subsanan o subsanan parcialmente, con un total de 23 procesos desiertos. En estos casos, los proponentes no han corregido o han corregido de manera incompleta las observaciones realizadas durante la evaluación, lo que ha impedido que sus propuestas sean consideradas viables, lo que imposibilita continuar con el proceso. No presentan cotización, lo que afectó a 14 procesos desiertos. En estos casos, los proponentes no entregaron la oferta económica requerida, lo cual impidió la evaluación y selección de una propuesta viable. No se cumplen con las especificaciones o requerimientos mínimos exigidos por el ABS , afectando a 6 procesos desiertos. Esta causal se refiere a que los proponentes no alcanzaron los estándares técnicos o administrativos mínimos establecidos por la entidad. Estas causales reflejan la importancia de fortalecer y mejorar los mecanismos de verificación y acompañamiento para evitar que los procesos sean declarados desiertos. IV TRIMESTRE: En el análisis de los procesos desiertos de Contratación Directa, se observa que de un total de 170 procesos, 59 procesos fueron declarados desiertos. Las principales causales de esta situación se detallan a continuación: No subsanan o subsanan parcialmente: En este caso, los proponentes no han corregido adecuadamente o lo han hecho de manera incompleta las observaciones realizadas durante la evaluación. Esta falta de corrección impide que sus propuestas sean consideradas viables, lo que imposibilita continuar con el proceso. No presentan cotización: En varios procesos, los proponentes no entregaron la oferta económica solicitada. Este incumplimiento imposibilitó la evaluación y selección de una propuesta viable, afectando directamente el desarrollo de los procesos. No cumplen con las especificaciones o requerimientos mínimos exigidos por el ABS: En esta causal, los proponentes no alcanzaron los estándares técnicos o administrativos mínimos establecidos por la entidad, lo que llevó a la descalificación de sus propuestas. Estas causales reflejan áreas clave que requieren atención para mejorar la tasa de éxito de los procesos de contratación directa. La elevada cantidad de procesos declarados desiertos resalta la necesidad de fortalecer los mecanismos de verificación y acompañamiento a los proponentes durante la fase de presentación de propuestas.
J34: ACCIÓN FORMULADA
J35: TRIMESTRE I -II: Con el objetivo de mitigar los procesos declarados desiertos, se ha implementado la medida de brindar apoyo a las áreas solicitantes durante la etapa de justificación de la necesidad. Esta iniciativa busca fortalecer la comunicación y colaboración entre las áreas involucradas, asegurando que las especificaciones y requisitos del proceso de contratación se ajusten de manera adecuada a las necesidades reales, adicional, se realiza constante seguimiento en conjunto con las areas a los diferentes procesos con el fin de que se presenten los proponentes en las fechas establecidas en el cronograma y que cumplan debidamente. III TRIMESTRE: Con el objetivo de mitigar la cantidad de procesos declarados desiertos, la Oficina de Compras ha implementado diversas acciones para apoyar a las áreas solicitantes en las distintas etapas del proceso de contratación. En primer lugar, se brinda asesoramiento durante la fase de justificación de la necesidad, asegurando que los requerimientos sean claros y realistas desde el inicio. Esto permite una mejor definición de los términos y especificaciones, evitando problemas posteriores. Adicionalmente, en la etapa de evaluación se han establecido mesas de trabajo con el propósito de unificar criterios entre las diferentes áreas involucradas. Estas mesas facilitan el intercambio de opiniones y alinean los procedimientos para garantizar que las evaluaciones se realicen de manera coherente y objetiva, reduciendo las discrepancias que podrían llevar a la declaración de procesos desiertos. Asimismo, el área jurídica de la Oficina de Compras ofrece espacios de consulta donde se brindan aclaraciones sobre aspectos legales y se asegura que la evaluación se realice de acuerdo con la normativa vigente. Este soporte jurídico es clave para que las evaluaciones sean precisas y ajustadas a los requerimientos establecidos, lo que minimiza errores y posibles controversias. Estas iniciativas buscan fortalecer la comunicación y la colaboración entre las áreas solicitantes y la Oficina de Compras, asegurando que las especificaciones y requisitos de cada proceso de contratación estén alineados con las necesidades reales de la entidad. Al mejorar estos aspectos, se espera reducir significativamente la cantidad de procesos declarados desiertos, optimizando tanto los tiempos como los recursos involucrados en la contratación. IV TRIMESTRE: Con el objetivo de mitigar la cantidad de procesos declarados desiertos, la Oficina de Compras ha implementado diversas acciones para apoyar a las áreas solicitantes en las distintas etapas del proceso de contratación. En primer lugar, se brinda asesoramiento durante la fase de justificación de la necesidad, asegurando que los requerimientos sean claros y realistas desde el inicio. Esto permite una mejor definición de los términos y especificaciones, evitando problemas posteriores. Adicionalmente, en la etapa de evaluación se han establecido mesas de trabajo con el propósito de unificar criterios entre las diferentes áreas involucradas. Estas mesas facilitan el intercambio de opiniones y alinean los procedimientos para garantizar que las evaluaciones se realicen de manera coherente y objetiva, reduciendo las discrepancias que podrían llevar a la declaración de procesos desiertos. Asimismo, el área jurídica de la Oficina de Compras ofrece espacios de consulta donde se brindan aclaraciones sobre aspectos legales y se asegura que la evaluación se realice de acuerdo con la normativa vigente. Este soporte jurídico es clave para que las evaluaciones sean precisas y ajustadas a los requerimientos establecidos, lo que minimiza errores y posibles controversias. Estas iniciativas buscan fortalecer la comunicación y la colaboración entre las áreas solicitantes y la Oficina de Compras, asegurando que las especificaciones y requisitos de cada proceso de contratación estén alineados con las necesidades reales de la entidad. Al mejorar estos aspectos, se espera reducir significativamente la cantidad de procesos declarados desiertos, optimizando tanto los tiempos como los recursos involucrados en la contratación.
J41: RESPONSABLE
J42: =E14 -> Jefe de la Oficina de Compras
C45: PERIODO DE EVALUACIÓN
C46: MES | D46: =IF(J23="MENSUAL","ENERO",IF(J23="TRIMESTRAL","MARZO",IF(J23="SEMESTRAL","JUNIO",IF(J23="ANUAL",YEAR(TODAY()),"")))) -> MARZO | E46: =IF(J23="MENSUAL","FEBRERO",IF(J23="TRIMESTRAL","JUNIO",IF(J23="SEMESTRAL","DICIEMBRE",""))) -> JUNIO | F46: =IF(J23="MENSUAL","MARZO",IF(J23="TRIMESTRAL","SEPTIEMBRE","")) -> SEPTIEMBRE | G46: =IF(J23="MENSUAL","ABRIL",IF(J23="TRIMESTRAL","DICIEMBRE","")) -> DICIEMBRE | H46: =IF(J23="MENSUAL","MAYO","") ->  | I46: =IF(J23="MENSUAL","JUNIO","") ->  | J46: =IF(J23="MENSUAL","JULIO","") ->  | K46: =IF(J23="MENSUAL","AGOSTO","") ->  | L46: =IF(J23="MENSUAL","SEPTIEMBRE","") ->  | M46: =IF(J23="MENSUAL","OCTUBRE","") ->  | N46: =IF(J23="MENSUAL","NOVIEMBRE","") ->  | O46: =IF(J23="MENSUAL","DICIEMBRE","") -> 
C47: =G18 -> Número procesos que se dan por desiertos durante el periodo * 100 | D47: 8 | E47: 34 | F47: 52 | G47: 59
C48: =G19 -> Total de procesos finalizados con o sin éxito en el periodo | D48: 28 | E48: 98 | F48: 128 | G48: 170
C49: VALOR | D49: =IFERROR(IF($E$17=1,D47/D48,IF($E$17=2,D47,"")),"") -> 0.2857142857 | E49: =IFERROR(IF($E$17=1,E47/E48,IF($E$17=2,E47,"")),"") -> 0.3469387755 | F49: =IFERROR(IF($E$17=1,F47/F48,IF($E$17=2,F47,"")),"") -> 0.40625 | G49: 0.3470588235
C50: META PONDERADA | D50: =IF(AND(N23="ANUAL",J23="MENSUAL"),N17/12,IF(AND(N23="ANUAL",J23="TRIMESTRAL"),N17/4,IF(AND(N23="ANUAL",J23="SEMESTRAL"),N17/2,IF(AND(N23="ANUAL",J23="ANUAL"),N17,IF(AND(N23="SEMESTRAL",J23="MENSUAL"),N17/6,IF(AND(N23="SEMESTRAL",J23="TRIMESTRAL"),N17/2,IF(AND(N23="SEMESTRAL",J23="SEMESTRAL"),N17,IF(AND(N23="SEMESTRAL",J23="ANUAL"),"REVISAR FRECUENCIAS",IF(AND(N23="TRIMESTRAL",J23="MENSUAL"),N17/3,IF(AND(N23="TRIMESTRAL",J23="TRIMESTRAL"),N17,IF(AND(N23="TRIMESTRAL",J23="SEMESTRAL"),"REVISAR FRECUENCIAS",IF(AND(N23="TRIMESTRAL",J23="ANUAL"),"REVISAR FRECUENCIAS",IF(AND(N23="MENSUAL",J23="MENSUAL"),N17,IF(AND(N23="MENSUAL",J23="TRIMESTRAL"),"REVISAR FRECUENCIAS",IF(AND(N23="MENSUAL",J23="SEMESTRAL"),"REVISAR FRECUENCIAS",IF(AND(N23="MENSUAL",J23="ANUAL"),"REVISAR FRECUENCIAS","")))))))))))))))) -> 0.35 | E50: =IF(AND(N23="ANUAL",J23="MENSUAL"),N17/12+D50,IF(AND(N23="ANUAL",J23="TRIMESTRAL"),N17/4+D50,IF(AND(N23="ANUAL",J23="SEMESTRAL"),N17/2+D50,IF(AND(N23="SEMESTRAL",J23="MENSUAL"),N17/6+D50,IF(AND(N23="SEMESTRAL",J23="TRIMESTRAL"),N17/2+D50,IF(AND(N23="SEMESTRAL",J23="SEMESTRAL"),N17,IF(AND(N23="TRIMESTRAL",J23="MENSUAL"),N17/3+D50,IF(AND(N23="TRIMESTRAL",J23="TRIMESTRAL"),N17,IF(AND(N23="MENSUAL",J23="MENSUAL"),N17,""))))))))) -> 0.35 | F50: =IF(AND(N23="ANUAL",J23="MENSUAL"),N17/12+E50,IF(AND(N23="ANUAL",J23="TRIMESTRAL"),N17/4+E50,IF(AND(N23="SEMESTRAL",J23="MENSUAL"),N17/6+E50,IF(AND(N23="SEMESTRAL",J23="TRIMESTRAL"),N17/2,IF(AND(N23="TRIMESTRAL",J23="MENSUAL"),N17/3+E50,IF(AND(N23="TRIMESTRAL",J23="TRIMESTRAL"),N17,IF(AND(N23="MENSUAL",J23="MENSUAL"),N17,""))))))) -> 0.35 | G50: =IF(AND(N23="ANUAL",J23="MENSUAL"),N17/12+F50,IF(AND(N23="ANUAL",J23="TRIMESTRAL"),N17/4+F50,IF(AND(N23="SEMESTRAL",J23="MENSUAL"),N17/6+F50,IF(AND(N23="SEMESTRAL",J23="TRIMESTRAL"),N17/2+F50,IF(AND(N23="TRIMESTRAL",J23="MENSUAL"),N17/3,IF(AND(N23="TRIMESTRAL",J23="TRIMESTRAL"),N17,IF(AND(N23="MENSUAL",J23="MENSUAL"),N17,""))))))) -> 0.35 | H50: =IF(AND($N$23="ANUAL",$J$23="MENSUAL"),$N$17/12+G50,IF(AND(N23="SEMESTRAL",J23="MENSUAL"),N17/6+G50,IF(AND(N23="TRIMESTRAL",J23="MENSUAL"),N17/3+G50,IF(AND(N23="MENSUAL",J23="MENSUAL"),N17,"")))) ->  | I50: =IF(AND($N$23="ANUAL",$J$23="MENSUAL"),$N$17/12+H50,IF(AND(N23="SEMESTRAL",J23="MENSUAL"),N17/6+H50,IF(AND(N23="TRIMESTRAL",J23="MENSUAL"),N17/3+H50,IF(AND(N23="MENSUAL",J23="MENSUAL"),N17,"")))) ->  | J50: =IF(AND($N$23="ANUAL",$J$23="MENSUAL"),$N$17/12+I50,IF(AND(N23="SEMESTRAL",J23="MENSUAL"),N17/6,IF(AND(N23="TRIMESTRAL",J23="MENSUAL"),N17/3,IF(AND(N23="MENSUAL",J23="MENSUAL"),N17,"")))) ->  | K50: =IF(AND($N$23="ANUAL",$J$23="MENSUAL"),$N$17/12+J50,IF(AND(N23="SEMESTRAL",J23="MENSUAL"),N17/6+J50,IF(AND(N23="TRIMESTRAL",J23="MENSUAL"),N17/3+J50,IF(AND(N23="MENSUAL",J23="MENSUAL"),N17,"")))) ->  | L50: =IF(AND($N$23="ANUAL",$J$23="MENSUAL"),$N$17/12+K50,IF(AND(N23="SEMESTRAL",J23="MENSUAL"),N17/6+K50,IF(AND(N23="TRIMESTRAL",J23="MENSUAL"),N17/3+K50,IF(AND(N23="MENSUAL",J23="MENSUAL"),N17,"")))) ->  | M50: =IF(AND($N$23="ANUAL",$J$23="MENSUAL"),$N$17/12+L50,IF(AND(N23="SEMESTRAL",J23="MENSUAL"),N17/6+L50,IF(AND(N23="TRIMESTRAL",J23="MENSUAL"),N17/3,IF(AND(N23="MENSUAL",J23="MENSUAL"),N17,"")))) ->  | N50: =IF(AND($N$23="ANUAL",$J$23="MENSUAL"),$N$17/12+M50,IF(AND(N23="SEMESTRAL",J23="MENSUAL"),N17/6+M50,IF(AND(N23="TRIMESTRAL",J23="MENSUAL"),N17/3+M50,IF(AND(N23="MENSUAL",J23="MENSUAL"),N17,"")))) ->  | O50: =IF(AND($N$23="ANUAL",$J$23="MENSUAL"),$N$17/12+N50,IF(AND(N23="SEMESTRAL",J23="MENSUAL"),N17/6+N50,IF(AND(N23="TRIMESTRAL",J23="MENSUAL"),N17/3+N50,IF(AND(N23="MENSUAL",J23="MENSUAL"),N17,"")))) -> 
C52: NIVEL DE SEGREGACIÓN *
C53: UNIDAD SEGREGADA (Ej. Facultad, Programa Académico, Área) | G53: RESULTADO | K53: ANALISIS DE DATOS SEGREGADO
C54: SOACHA | G54: 14 | K54: La Universidad de Cundinamarca Extensión Soacha presentó dos (02) procesos desiertos en el cuartor trimestre del año 2024 el cual representa un 14% en relación a los procesos con o sin exito, lo que nos lleva a cumplir la meta de estar por debajo del 35% y estar en una escala de EXCELENTE.
C55: GIRARDOT | G55: 50 | K55: Teniendo en cuenta todos los contratos efectuados en el tercer trimestre del 2024, se obtuvo como resultado un valor del 50%, ubicandose en la escala como deficiente que corresponde a 37 procesos finalizados con o sin éxito en el trimestre sobre una muestra de 17 procesos declarados desiertos. Respecto a los procesos que se dan por desierto, se presenta debido a los siguientes motivos: 1.el proceso de contratacion GCD-080 se lanzo 4 Veces sin tener respuesta a la solicitud de publicacion; el proceso GCD-081 se lanzo 2 veces y no se pudo concluir a satisfacion en la segunda publicacion; por que el oferente no estaba inscrito en el banco de Proovedores de la Universidad y se termino por mutuo acuerdo entre las partes; el Proceso GCD-079 se publico 3 veces y en la cuarta publicacion se obtuvo una respuesta satisfactoria que permitio la contratacion; el Proceso GCD-083 se lanzo dos veces a la segunda publicacion se obtuvo una irtespuesta de un oferente pero no cumplio con la documentacion lo que genero que el area tecnica declinara de continuar el proceso y justifico via correo su solicitud de no seguir publicando el proceso. 2. al publicarse en varias ocasiones estos procesos genera un Indicador deficiente.
C56: FACATATIVA | G56: 18 | K56: TRIMESTRE IV: TRES procesos fueron declarados desiertos dado a que los oferentes no cumplian con los requisitos minimos exigidos por el area tecnica.
C57: CHIA - ZIPA | G57: 8 | K57: Se puede evidencias que de 38 procesos, 3 fueron desiertos esto por fallas en la revision documental, teniendo en cuenta esto, a pesar de tener una eficacia alta se debe mejorar al momento de la recepcion de los documentos ya que pueden tener fallas o son incorrectos que demoran o caen los procesos
C58: UBATE | G58: 29 | K58: De acuerdo a los resultados obtenidos, se establece que la tasa de procesos desiertos de la Seccional Ubaté, para el cuarto trimestre de 2024 se encuentra en 29%. Los factores que más predominan son principalmente; la no subsanación de requisitos,seguido de la no presentación de cotizantes. No obstante,cabe aclarar que de los 9 pocesos desiertos, 6 se adelantaron en una segunda, tercera o cuarta oportunidad de manera efectiva, encontrandose a la fecha los recursos en ejecución.
C59: FUSAGASUGA | G59: 35 | K59: En el análisis de los procesos desiertos de Contratación Directa, se observa que de un total de 170 procesos, 59 procesos fueron declarados desiertos. Las principales causales de esta situación se detallan a continuación: No subsanan o subsanan parcialmente: En este caso, los proponentes no han corregido adecuadamente o lo han hecho de manera incompleta las observaciones realizadas durante la evaluación. Esta falta de corrección impide que sus propuestas sean consideradas viables, lo que imposibilita continuar con el proceso. No presentan cotización: En varios procesos, los proponentes no entregaron la oferta económica solicitada. Este incumplimiento imposibilitó la evaluación y selección de una propuesta viable, afectando directamente el desarrollo de los procesos. No cumplen con las especificaciones o requerimientos mínimos exigidos por el ABS: En esta causal, los proponentes no alcanzaron los estándares técnicos o administrativos mínimos establecidos por la entidad, lo que llevó a la descalificación de sus propuestas. Estas causales reflejan áreas clave que requieren atención para mejorar la tasa de éxito de los procesos de contratación directa. La elevada cantidad de procesos declarados desiertos resalta la necesidad de fortalecer los mecanismos de verificación y acompañamiento a los proponentes durante la fase de presentación de propuestas.
G72: Estratégico | J72: Eficacia
G73: Misional | J73: Eficiencia
G74: Apoyo | J74: Acreditación
G75: Seguimiento, Medición, Análisis y Evaluación | J75: Positiva
G76: Direccionamiento Estratégico | J76: Negativa
G77: Planeación Institucional | J77: Por Unidad Regional
G78: Proyectos Especiales y Relaciones Interinstitucionales | J78: Por Facultad
G79: Sistemas Integrados | J79: Por Programa Académico
G80: Autoevaluación y Acreditación | J80: Por área
G81: Comunicaciones | J81: Por Laboratorio
G82: Formación y Aprendizaje | J82: Otros
G83: Ciencia, Tecnología e Innovación | J83: No Aplica
G84: Interacción Social Universitaria
G85: Bienestar Universitario
G86: Admisiones y Registro
G87: Graduados
G88: Dialogando con el Mundo
G89: Talento Humano
G90: Jurídica
G91: Financiera
G92: Sistemas y Tecnología
G93: Bienes y Servicios
G94: Documental
G95: Apoyo Académico
G96: Control Interno
G97: Control Disciplinario
G98: Servicio de Atención al Ciudadano

Sheet ABS-11
B2: REGRESAR
E5: MACROPROCESO ESTRATÉGICO | M5: CÓDIGO: ESGr027
E6: PROCESO GESTIÓN SISTEMAS INTEGRADOS | M6: VERSIÓN: 8
E7: MATRIZ DE MEDICIÓN Y SEGUIMIENTO A LOS PROCESOS DE GESTIÓN | M7: VIGENCIA: 2023-07-28
M8: PÁGINA: 7 de 8
C10: FICHA DE INDICADOR
C12: MACROPROCESO | E12: Apoyo | I12: NOMBRE DEL INDICADOR | K12: Cumplimiento a la planificación de salidas programadas por parte de la academia.
C13: PROCESO GESTIÓN | E13: Bienes y Servicios
C14: RESPONSABLE DE MEDICIÓN | E14: Jefe de Recursos Físicos y Servicios Generales
C16: 1. COMPORTAMIENTO DE INDICADOR | R16: link de la data
C17: CLASIFICACIÓN DE LA MEDICIÓN | E17: 1 | H17: TIPO DE INDICADOR | J17: Eficacia | L17: META | N17: 1 | R17: https://app.powerbi.com/view?r=eyJrIjoiNjQxYWU4MTEtYmFiZC00MDJjLThlYzMtMDViZmYyYjlkYjY1IiwidCI6IjA3ZGE2N2EwLTFmNDMtNGU4Yy05NzdmLTVmODhiNjQ3MGVlNiIsImMiOjR9
C18: FORMULA | E18: NUMERADOR | G18: # total de salidas académicas programadas atendidas * 100 | L18: UNIDAD DE MEDIDA | N18: Porcentaje
E19: DENOMINADOR | G19: #total de salidas académicas programadas - # salidas académicas canceladas.
C20: TENDENCIA | E20: Positiva | H20: NIVEL DE SEGREGACIÓN * | J20: Por Unidad Regional | L20: ESCALA
L21: Deficiente | M21: Aceptable | N21: Bueno | O21: Excelente
L22: 0% - 50% | M22: 50,1% - 60% | N22: 60,1% - 70% | O22: 70,1% - 100%
C23: ORIGEN DE DATOS NUMERADOR | E23: Actas y adendas de salidas académicas. | H23: FRECUENCIA DE LA MEDICIÓN | J23: SEMESTRAL | L23: FRECUENCIA DE RESULTADO | N23: SEMESTRAL
C24: ORIGEN DE DATOS DENOMINADOR | E24: Planilla de seguimiento.
C26: RESULTADOS
J27: ANÁLISIS DE DATOS
J28: SEMESTRE I: Durante el primer semestre del 2024, se aprobaron mediante acta un total de 265 practicas académicas. De estas, 25 fueron aplazadas por la academia y 37 fueron canceladas. Las 183 practicas restantes contaron con el servicio de transporte asignado por parte de la Jefatura de Recursos Físicos y Servicios, lo que evidencia un cumplimiento del 100% de efectividad. SEMESTRE II: Durante el segundo semestre del 2024, se aprobaron mediante acta un total de 238 practicas académicas. De estas, 74 fueron canceladas. Las 164 practicas restantes contaron con el servicio de transporte asignado por parte de la Jefatura de Recursos Físicos y Servicios, lo que evidencia un cumplimiento del 100% de efectividad.
J34: ACCIÓN FORMULADA
J35: SEMESTRE I y II: Es importante destacar que se cumplió con la meta establecida en cuanto al porcentaje de eficacia relacionado con las salidas académicas y/o experiencias formativas. Sin embargo, desde la Oficina de Recursos Físicos y Servicios Generales recomendamos al área académica fortalecer y optimizar la programación de estas actividades. Las modificaciones de último momento generan contratiempos en los procedimientos internos de nuestra área y afectan la interacción con otros procesos necesarios para la adecuada ejecución de las salidas académicas. Además, estas situaciones pueden impactar negativamente el patrimonio institucional, incrementando los riesgos para la universidad. En este sentido, y en coordinación con la Jefatura de Desarrollo Académico, hemos iniciado la implementación del procedimiento de prácticas académicas en el sistema Integrdoc. Consideramos que esta parametrización contribuirá significativamente a la mejora de la gestión y ejecución de estas actividades en el futuro.
J41: RESPONSABLE
J42: Jefe de Recursos Físicos y Servicios Generales.
C45: PERIODO DE EVALUACIÓN
C46: MES | D46: JUNIO | E46: DICIEMBRE | J46: =IF(J23="MENSUAL","JULIO","") ->  | K46: =IF(J23="MENSUAL","AGOSTO","") ->  | L46: =IF(J23="MENSUAL","SEPTIEMBRE","") ->  | M46: =IF(J23="MENSUAL","OCTUBRE","") ->  | N46: =IF(J23="MENSUAL","NOVIEMBRE","") ->  | O46: =IF(J23="MENSUAL","DICIEMBRE","") -> 
C47: =G18 -> # total de salidas académicas programadas atendidas * 100 | D47: 183 | E47: 164
C48: =G19 -> #total de salidas académicas programadas - # salidas académicas canceladas. | D48: 183 | E48: 164
C49: VALOR | D49: =IFERROR(IF($E$17=1,D47/D48,IF($E$17=2,D47/D48,"")),"") -> 1 | E49: =IFERROR(IF($E$17=1,E47/E48,IF($E$17=2,E47/E48,"")),"") -> 1
C50: META PONDERADA | D50: =IF(AND(N23="ANUAL",J23="MENSUAL"),N17/12,IF(AND(N23="ANUAL",J23="TRIMESTRAL"),N17/4,IF(AND(N23="ANUAL",J23="SEMESTRAL"),N17/2,IF(AND(N23="ANUAL",J23="ANUAL"),N17,IF(AND(N23="SEMESTRAL",J23="MENSUAL"),N17/6,IF(AND(N23="SEMESTRAL",J23="TRIMESTRAL"),N17/2,IF(AND(N23="SEMESTRAL",J23="SEMESTRAL"),N17,IF(AND(N23="SEMESTRAL",J23="ANUAL"),"REVISAR FRECUENCIAS",IF(AND(N23="TRIMESTRAL",J23="MENSUAL"),N17/3,IF(AND(N23="TRIMESTRAL",J23="TRIMESTRAL"),N17,IF(AND(N23="TRIMESTRAL",J23="SEMESTRAL"),"REVISAR FRECUENCIAS",IF(AND(N23="TRIMESTRAL",J23="ANUAL"),"REVISAR FRECUENCIAS",IF(AND(N23="MENSUAL",J23="MENSUAL"),N17,IF(AND(N23="MENSUAL",J23="TRIMESTRAL"),"REVISAR FRECUENCIAS",IF(AND(N23="MENSUAL",J23="SEMESTRAL"),"REVISAR FRECUENCIAS",IF(AND(N23="MENSUAL",J23="ANUAL"),"REVISAR FRECUENCIAS","")))))))))))))))) -> 1 | E50: =IF(AND(N23="ANUAL",J23="MENSUAL"),N17/12,IF(AND(N23="ANUAL",J23="TRIMESTRAL"),N17/4,IF(AND(N23="ANUAL",J23="SEMESTRAL"),N17/2,IF(AND(N23="ANUAL",J23="ANUAL"),N17,IF(AND(N23="SEMESTRAL",J23="MENSUAL"),N17/6,IF(AND(N23="SEMESTRAL",J23="TRIMESTRAL"),N17/2,IF(AND(N23="SEMESTRAL",J23="SEMESTRAL"),N17,IF(AND(N23="SEMESTRAL",J23="ANUAL"),"REVISAR FRECUENCIAS",IF(AND(N23="TRIMESTRAL",J23="MENSUAL"),N17/3,IF(AND(N23="TRIMESTRAL",J23="TRIMESTRAL"),N17,IF(AND(N23="TRIMESTRAL",J23="SEMESTRAL"),"REVISAR FRECUENCIAS",IF(AND(N23="TRIMESTRAL",J23="ANUAL"),"REVISAR FRECUENCIAS",IF(AND(N23="MENSUAL",J23="MENSUAL"),N17,IF(AND(N23="MENSUAL",J23="TRIMESTRAL"),"REVISAR FRECUENCIAS",IF(AND(N23="MENSUAL",J23="SEMESTRAL"),"REVISAR FRECUENCIAS",IF(AND(N23="MENSUAL",J23="ANUAL"),"REVISAR FRECUENCIAS","")))))))))))))))) -> 1 | H50: =IF(AND($N$23="ANUAL",$J$23="MENSUAL"),$N$17/12+G50,IF(AND(N23="SEMESTRAL",J23="MENSUAL"),N17/6+G50,IF(AND(N23="TRIMESTRAL",J23="MENSUAL"),N17/3+G50,IF(AND(N23="MENSUAL",J23="MENSUAL"),N17,"")))) ->  | I50: =IF(AND($N$23="ANUAL",$J$23="MENSUAL"),$N$17/12+H50,IF(AND(N23="SEMESTRAL",J23="MENSUAL"),N17/6+H50,IF(AND(N23="TRIMESTRAL",J23="MENSUAL"),N17/3+H50,IF(AND(N23="MENSUAL",J23="MENSUAL"),N17,"")))) ->  | J50: =IF(AND($N$23="ANUAL",$J$23="MENSUAL"),$N$17/12+I50,IF(AND(N23="SEMESTRAL",J23="MENSUAL"),N17/6,IF(AND(N23="TRIMESTRAL",J23="MENSUAL"),N17/3,IF(AND(N23="MENSUAL",J23="MENSUAL"),N17,"")))) ->  | K50: =IF(AND($N$23="ANUAL",$J$23="MENSUAL"),$N$17/12+J50,IF(AND(N23="SEMESTRAL",J23="MENSUAL"),N17/6+J50,IF(AND(N23="TRIMESTRAL",J23="MENSUAL"),N17/3+J50,IF(AND(N23="MENSUAL",J23="MENSUAL"),N17,"")))) ->  | L50: =IF(AND($N$23="ANUAL",$J$23="MENSUAL"),$N$17/12+K50,IF(AND(N23="SEMESTRAL",J23="MENSUAL"),N17/6+K50,IF(AND(N23="TRIMESTRAL",J23="MENSUAL"),N17/3+K50,IF(AND(N23="MENSUAL",J23="MENSUAL"),N17,"")))) ->  | M50: =IF(AND($N$23="ANUAL",$J$23="MENSUAL"),$N$17/12+L50,IF(AND(N23="SEMESTRAL",J23="MENSUAL"),N17/6+L50,IF(AND(N23="TRIMESTRAL",J23="MENSUAL"),N17/3,IF(AND(N23="MENSUAL",J23="MENSUAL"),N17,"")))) ->  | N50: =IF(AND($N$23="ANUAL",$J$23="MENSUAL"),$N$17/12+M50,IF(AND(N23="SEMESTRAL",J23="MENSUAL"),N17/6+M50,IF(AND(N23="TRIMESTRAL",J23="MENSUAL"),N17/3+M50,IF(AND(N23="MENSUAL",J23="MENSUAL"),N17,"")))) ->  | O50: =IF(AND($N$23="ANUAL",$J$23="MENSUAL"),$N$17/12+N50,IF(AND(N23="SEMESTRAL",J23="MENSUAL"),N17/6+N50,IF(AND(N23="TRIMESTRAL",J23="MENSUAL"),N17/3+N50,IF(AND(N23="MENSUAL",J23="MENSUAL"),N17,"")))) -> 
C52: NIVEL DE SEGREGACIÓN *
C53: UNIDAD SEGREGADA (Ej. Facultad, Programa Académico, Área) | G53: RESULTADO | K53: ANALISIS DE DATOS SEGREGADO
C54: Fusagasugá | G54: 100 | K54: Durante el segundo semestre del 2024, se aprobaron mediante acta un total de 87 practicas académicas. De estas, 25 fueron canceladas por la academia. Las 62 practicas restantes contaron con el servicio de transporte asignado por parte de la Jefatura de Recursos Físicos y Servicios, lo que evidencia un cumplimiento del 100% de efectividad.
C55: Seccional Ubaté | G55: 100 | K55: Durante el segundo semestre del 2024, se aprobaron mediante acta un total de 35 practicas académicas. De estas, 22 fueron canceladas por la academia. Las 13 practicas restantes contaron con el servicio de transporte asignado por parte de la Jefatura de Recursos Físicos y Servicios, lo que evidencia un cumplimiento del 100% de efectividad.
C56: Girardot | G56: 100 | K56: Durante el segundo semestre del 2024, se aprobaron mediante acta un total de 31 practicas académicas. De estas, 6 fueron canceladas por la academia. Las 25 practicas restantes contaron con el servicio de transporte asignado por parte de la Jefatura de Recursos Físicos y Servicios, lo que evidencia un cumplimiento del 100% de efectividad.
C57: Zipaquirá | G57: 100 | K57: Durante el segundo semestre del 2024, se aprobaron mediante acta un total de 7 practicas académicas. De estas, 2 fueron canceladas por la academia. Las 5 practicas restantes contaron con el servicio de transporte asignado por parte de la Jefatura de Recursos Físicos y Servicios, lo que evidencia un cumplimiento del 100% de efectividad.
C58: Soacha | G58: 100 | K58: Durante el segundo semestre del 2024, se aprobaron mediante acta un total de 28 practicas académicas. De estas, 9 fueron canceladas por la academia. Las 19 practicas restantes contaron con el servicio de transporte asignado por parte de la Jefatura de Recursos Físicos y Servicios, lo que evidencia un cumplimiento del 100% de efectividad.
C59: Facatativá | G59: 100 | K59: Durante el segundo semestre del 2024, se aprobaron mediante acta un total de 45 practicas académicas. De estas, 10 fueron canceladas por la academia. Las 35 practicas restantes contaron con el servicio de transporte asignado por parte de la Jefatura de Recursos Físicos y Servicios, lo que evidencia un cumplimiento del 100% de efectividad.
C60: Chía | G60: 100 | K60: Durante el segundo semestre del 2024, se aprobaron mediante acta un total de 5 practicas académicas. Las cuales contaron con el servicio de transporte asignado por parte de la Jefatura de Recursos Físicos y Servicios, lo que evidencia un cumplimiento del 100% de efectividad.
G66: Estratégico | J66: Eficacia
G67: Misional | J67: Eficiencia
G68: Apoyo | J68: Acreditación
G69: Seguimiento, Medición, Análisis y Evaluación | J69: Positiva
G70: Direccionamiento Estratégico | J70: Negativa
G71: Planeación Institucional | J71: Por Unidad Regional
G72: Proyectos Especiales y Relaciones Interinstitucionales | J72: Por Facultad
G73: Sistemas Integrados | J73: Por Programa Académico
G74: Autoevaluación y Acreditación | J74: Por área
G75: Comunicaciones | J75: Por Laboratorio
G76: Formación y Aprendizaje | J76: Otros
G77: Ciencia, Tecnología e Innovación | J77: No Aplica
G78: Interacción Social Universitaria
G79: Bienestar Universitario
G80: Admisiones y Registro
G81: Graduados
G82: Dialogando con el Mundo
G83: Talento Humano
G84: Jurídica
G85: Financiera
G86: Sistemas y Tecnología
G87: Bienes y Servicios
G88: Documental
G89: Apoyo Académico
G90: Control Interno
G91: Control Disciplinario
G92: Servicio de Atención al Ciudadano

Sheet ACTUALIZACIONES
C2: MACROPROCESO ESTRATÉGICO | E2: CÓDIGO: ESGr027
C3: PROCESO GESTIÓN SISTEMAS INTEGRADOS - CALIDAD | E3: VERSIÓN: 8
C4: MATRIZ DE MEDICIÓN Y SEGUIMIENTO A LOS PROCESOS DE GESTIÓN | E4: VIGENCIA: 2023-07-28
E5: PÁGINA: 8 de 8
B7: CONTROL DE ACTUALIZACIONES
B8: FECHA | C8: DESCRIPCIÓN DE LA ACTUALIZACIÓN | D8: RESPONSABLE | E8: CARGO
B9: 2020-03-31 | C9: Se agregan dos nuevos indicadores para Acreditación "Mantenimiento a infraestructura de espacios académicos" y "Renovación y actualización de obras con enfoque inclusivo (eliminación de barreras arquitectónicas)" | D9: Jaime Elder Acosta Ramírez | E9: Coordinador de Calidad
B10: 2022-03-31 | C10: ABS-9 El indicador se unifica para llevarlo de manera general (antes se discriminaba en Fusagasugá, Ubaté y Girardot). ABS-7: Renovación y actualización de obras con enfoque inclusivo (eliminación de barreras arquitectónicas), se inactiva al no tener contemplado realizar más obras con enfoque inclusivo. Se crea el indicador ABS-10: Tasa de Procesos desiertos, para la oficina de Compras | D10: Ricardo Andrés Jiménez Nieto | E10: Director de Bienes y Servicios
B11: 2023-03-27 | C11: ABS-1 Se reformula el indicador para revisar con lo estipulado en el cronograma de actividades de inventarios EPr001, con el fin de tener una medición más acertada a la realidad. ABS-2 Se incrementa la meta 100% y dentro de la medición se deberá revisar el tiempo estipulado para la entrega del indicador menor o igual a 15 días hábiles (ajustando la fórmula del indicador). ABS-6 "Mantenimiento a infraestructura física", este indicador se inactiva porque actualmente se lleva por Plan de Acción. ABS-9 De acuerdo al comportamiento en el indicador durante el 2022, se incrementa la meta al 95%,con respecto a la fórmula del indicador se hace un ajuste con respecto al "total proveedores calificados mayor a 70", para la vigencia de 202 estaba "total proveedores calificados mayor a 80", lo anterior obedece a lo establecido en los formatos ABSF049 y ABSF084. Para Recursos Físicos y Servicios Generales se crea el siguiente indicador: ABS-11: Cumplimiento a la planificación de salidas programadas por la academia. | D11: Ricardo Andrés Jiménez Nieto | E11: Director de Bienes y Servicios
B12: 2023-09-29 | C12: De acuerdo a la solicitud realizada en correo del 26 de septiembre, se confirma que de acuerdo a la revisión de la Circular 006 en los tiempos determinados en la Fase II: Gestión Contractual, se ajusta en la formula del indicador en el numerador: (Total compras de contratación directa atendidas en tiempo menor a 30 días) *100. Es importante anotar que en el tiempo que estaba aprobada la actual Circular, no se requirió el ajuste de la medición del indicador. | D12: Ricardo Andrés Jiménez Nieto | E12: Director de Bienes y Servicios
B13: 2023-11-07 | C13: De acuerdo a revisión de la medición de indicadores al III trimestre, se actualiza la base de datos para el numerador del indicador ABS-1 : ABSr139 - Informe toma Física de inventarios | D13: Ricardo Andrés Jiménez Nieto | E13: Director de Bienes y Servicios
B14: 2024-03-01 | C14: ABS-1 Se incrementa la meta a 98% teniendo en cuenta los buenos resultados alcanzados en la vigencia anterior. ABS-2 Aunque los resultados cumplen la expectativa del proceso, es necesario seguir con la medición de este indicador porque responden de manera directa con una de las actividades de la Oficina de Almacén. ABS-4 Es importante precisar que debido a los resultados de la vigencia anterior, es importante mantener la meta del indicador, con el fin de consolidar las actividades que se han realizado para mantener o mejorar el comportamiento del mismo. ABS-9 Dado el comportamiento en la vigencia anterior, la oficina de Compras, requiere subir la meta al 96% . ABS-10 Es importante precisar que debido a los resultados de la vigencia anterior, es importante mantener la meta del indicador, con el fin de consolidar las actividades que se han realizado para mantener o mejorar el comportamiento del mismo. ABS-11 Sube la meta al 100%, teniendo en cuenta el buen comportamiento del indicador en la anterior vigencia. | D14: Ricardo Andrés Jiménez Nieto | E14: Director de Bienes y Servicios
B27: Diagonal 18 No. 20-29 Fusagasugá – Cundinamarca Teléfono (601) 8281483 Línea Gratuita 018000180414 www.ucundinamarca.edu.co E-mail: info@ucundinamarca.edu.co NIT: 890.680.062-2
B30: Documento controlado por el Sistema de Gestión de la Calidad Asegúrese que corresponde a la última versión consultando el Portal Institucional

Sheet ITEM (hidden)
A1: MENSUAL | C1: NÚMERO
A2: TRIMESTRAL | C2: PORCENTAJE
A3: SEMESTRAL
A4: ANUAL
